Workbook

Sheet Orçamento
O3: UNIDADE ESCOLAR | V3: CÓDIGO INEP
O4: COLÉGIO ESTADUAL FREDERICO JAYME | V4: 52054365
A6: Nmax | M6: Ajustar altura? | O6: OBRA | S6: DATA | V6: CIDADE
A7: =MAX($C$18:$C$448) -> 4 | M7: NÃO | O7: REFORMA E AMPLIAÇÃO | S7: 2020-04-16 | V7: RIO VERDE
O9: CRE | R9: ENDEREÇO | S9: REFERÊNCIA AGETOP | V9: REFERÊNCIA SINAPI
O10: RIO VERDE | R10: RUA TERCIO CAMPOS LEAO SN, SANTO ANTONIO, CEP:75906-420 | S10: ABR/19 | T10: DESONERADA | V10: DEZ/19 | W10: DESONERADA
O12: ÁREA EXISTENTE (M²) | R12: ÁREA A CONSTRUIR (M²) | S12: ÁREA A DEMOLIR (M²) | V12: ÁREA TOTAL CONSTRUÍDA (M²)
O13: 1401.85 | R13: 25.2 | S13: 2 | V13: 1425.05
L15: FILTRO | O15: PLANILHA ORÇAMENTÁRIA
A16: Nível E | B16: Save Nivel | C16: Nível C | D16: Altura | E16: n1 | F16: n2 | G16: n3 | H16: n4 | I16: n5 | J16: Czero | K16: Cnível | L16: ↓ | M16: Nível | N16: Nível Corrigido | O16: ITEM | P16: TABELA | Q16: CODIGO | R16: DESCRIÇÃO DOS SERVIÇOS | S16: UNID | T16: QUANT | U16: MAT | V16: MO | W16: T.SERVIÇO | X16: OBSERVAÇÕES¹
A17: =CHOOSE(1+LOG(1+2*(ORÇAMENTO.Nivel="Nível 1")+4*(ORÇAMENTO.Nivel="Nível 2")+8*(ORÇAMENTO.Nivel="Nível 3")+16*(ORÇAMENTO.Nivel="Nível 4")+32*(ORÇAMENTO.Nivel="Serviço"),2),0,1,2,3,4,"S") -> S | B17: =IF(OR(C17="s",C17=0),OFFSET(B17,-1,0),C17) -> Save Nivel | C17: =IF(OFFSET(C17,-1,0)="L",1,IF(OFFSET(C17,-1,0)=1,2,IF(OR(A17="s",A17=0),"S",IF(AND(OFFSET(C17,-1,0)=2,A17=4),3,IF(AND(OR(OFFSET(C17,-1,0)="s",OFFSET(C17,-1,0)=0),A17<>"s",A17>OFFSET(B17,-1,0)),OFFSET(B17,-1,0),A17))))) -> S | D17: =IF(OR(C17="S",C17=0),0,IF(ISERROR(K17),J17,SMALL(J17:K17,1))) -> 0 | E17: =IF($C17=1,OFFSET(E17,-1,0)+1,OFFSET(E17,-1,0)) -> n1 | F17: =IF($C17=1,0,IF($C17=2,OFFSET(F17,-1,0)+1,OFFSET(F17,-1,0))) -> n2 | G17: =IF(AND($C17<=2,$C17<>0),0,IF($C17=3,OFFSET(G17,-1,0)+1,OFFSET(G17,-1,0))) -> n3 | H17: =IF(AND($C17<=3,$C17<>0),0,IF($C17=4,OFFSET(H17,-1,0)+1,OFFSET(H17,-1,0))) -> n4 | I17: =IF(AND($C17<=4,$C17<>0),0,IF(AND($C17="S",$W17>0),OFFSET(I17,-1,0)+1,OFFSET(I17,-1,0))) -> n5 | J17: =IF(OR($C17="S",$C17=0),0,MATCH(0,OFFSET($D17,1,$C17,ROW($C$448)-ROW($C17)),0)) -> 0 | K17: =IF(OR($C17="S",$C17=0),0,MATCH(OFFSET($D17,0,$C17)+1,OFFSET($D17,1,$C17,ROW($C$448)-ROW($C17)),0)) -> 0 | M17: Serviço | N17: Serviço | O17: - | P17: SINAPI | R17: (sem código) | S17: - | U17: 0 | V17: 0 | W17: 0
A18: 0 | C18: L | D18: =COUNTA(OFFSET(D18,1,0):D$448) -> 429 | E18: =LEFT(O19,1)-1 -> 0 | L18: F | M18: LOTE | N18: LOTE | O18: REFORMA E AMPLIAÇÃO - COLÉGIO ESTADUAL FREDERICO JAYME | W18: 0
A19: =CHOOSE(1+LOG(1+2*(ORÇAMENTO.Nivel="Nível 1")+4*(ORÇAMENTO.Nivel="Nível 2")+8*(ORÇAMENTO.Nivel="Nível 3")+16*(ORÇAMENTO.Nivel="Nível 4")+32*(ORÇAMENTO.Nivel="Serviço"),2),0,1,2,3,4,"S") -> 1 | B19: =IF(OR(C19="s",C19=0),OFFSET(B19,-1,0),C19) -> 1 | C19: =IF(OFFSET(C19,-1,0)="L",1,IF(OFFSET(C19,-1,0)=1,2,IF(OR(A19="s",A19=0),"S",IF(AND(OFFSET(C19,-1,0)=2,A19=4),3,IF(AND(OR(OFFSET(C19,-1,0)="s",OFFSET(C19,-1,0)=0),A19<>"s",A19>OFFSET(B19,-1,0)),OFFSET(B19,-1,0),A19))))) -> 1 | D19: =IF(OR(C19="S",C19=0),0,IF(ISERROR(K19),J19,SMALL(J19:K19,1))) -> 429 | E19: =IF($C19=1,OFFSET(E19,-1,0)+1,OFFSET(E19,-1,0)) -> 1 | F19: =IF($C19=1,0,IF($C19=2,OFFSET(F19,-1,0)+1,OFFSET(F19,-1,0))) -> 0 | G19: =IF(AND($C19<=2,$C19<>0),0,IF($C19=3,OFFSET(G19,-1,0)+1,OFFSET(G19,-1,0))) -> 0 | H19: =IF(AND($C19<=3,$C19<>0),0,IF($C19=4,OFFSET(H19,-1,0)+1,OFFSET(H19,-1,0))) -> 0 | I19: =IF(AND($C19<=4,$C19<>0),0,IF(AND($C19="S",$W19>0),OFFSET(I19,-1,0)+1,OFFSET(I19,-1,0))) -> 0 | J19: =IF(OR($C19="S",$C19=0),0,MATCH(0,OFFSET($D19,1,$C19,ROW($C$448)-ROW($C19)),0)) -> 429 | K19: =IF(OR($C19="S",$C19=0),0,MATCH(OFFSET($D19,0,$C19)+1,OFFSET($D19,1,$C19,ROW($C$448)-ROW($C19)),0)) ->  | L19: F | M19: Nível 1 | N19: Nível 1 | O19: 1. | P19: AGETOP | R19: REFORMA E AMPLIAÇÃO | W19: 0
A20: 2 | B20: =IF(OR(C20="s",C20=0),OFFSET(B20,-1,0),C20) -> 2 | C20: =IF(OFFSET(C20,-1,0)="L",1,IF(OFFSET(C20,-1,0)=1,2,IF(OR(A20="s",A20=0),"S",IF(AND(OFFSET(C20,-1,0)=2,A20=4),3,IF(AND(OR(OFFSET(C20,-1,0)="s",OFFSET(C20,-1,0)=0),A20<>"s",A20>OFFSET(B20,-1,0)),OFFSET(B20,-1,0),A20))))) -> 2 | D20: =IF(OR(C20="S",C20=0),0,IF(ISERROR(K20),J20,SMALL(J20:K20,1))) -> 26 | E20: =IF($C20=1,OFFSET(E20,-1,0)+1,OFFSET(E20,-1,0)) -> 1 | F20: =IF($C20=1,0,IF($C20=2,OFFSET(F20,-1,0)+1,OFFSET(F20,-1,0))) -> 1 | G20: =IF(AND($C20<=2,$C20<>0),0,IF($C20=3,OFFSET(G20,-1,0)+1,OFFSET(G20,-1,0))) -> 0 | H20: =IF(AND($C20<=3,$C20<>0),0,IF($C20=4,OFFSET(H20,-1,0)+1,OFFSET(H20,-1,0))) -> 0 | I20: =IF(AND($C20<=4,$C20<>0),0,IF(AND($C20="S",$W20>0),OFFSET(I20,-1,0)+1,OFFSET(I20,-1,0))) -> 0 | J20: 428 | K20: 26 | M20: Nível 2 | N20: Nível 2 | O20: - | P20: AGETOP | R20: SERVIÇOS PRELIMINARES | W20: 0
A21: 3 | B21: =IF(OR(C21="s",C21=0),OFFSET(B21,-1,0),C21) -> 3 | C21: =IF(OFFSET(C21,-1,0)="L",1,IF(OFFSET(C21,-1,0)=1,2,IF(OR(A21="s",A21=0),"S",IF(AND(OFFSET(C21,-1,0)=2,A21=4),3,IF(AND(OR(OFFSET(C21,-1,0)="s",OFFSET(C21,-1,0)=0),A21<>"s",A21>OFFSET(B21,-1,0)),OFFSET(B21,-1,0),A21))))) -> 3 | D21: =IF(OR(C21="S",C21=0),0,IF(ISERROR(K21),J21,SMALL(J21:K21,1))) -> 4 | E21: =IF($C21=1,OFFSET(E21,-1,0)+1,OFFSET(E21,-1,0)) -> 1 | F21: =IF($C21=1,0,IF($C21=2,OFFSET(F21,-1,0)+1,OFFSET(F21,-1,0))) -> 1 | G21: =IF(AND($C21<=2,$C21<>0),0,IF($C21=3,OFFSET(G21,-1,0)+1,OFFSET(G21,-1,0))) -> 1 | H21: =IF(AND($C21<=3,$C21<>0),0,IF($C21=4,OFFSET(H21,-1,0)+1,OFFSET(H21,-1,0))) -> 0 | I21: =IF(AND($C21<=4,$C21<>0),0,IF(AND($C21="S",$W21>0),OFFSET(I21,-1,0)+1,OFFSET(I21,-1,0))) -> 0 | J21: 25 | K21: 4 | M21: Nível 3 | N21: Nível 3 | O21: - | P21: SINAPI | R21: REFORMA GERAL DO BLOCO EM ANEXO | S21: - | U21: 0 | V21: 0 | W21: 0
A22: S | B22: 3 | C22: S | D22: 0 | E22: 1 | F22: 1 | G22: 1 | H22: 0 | I22: 0 | J22: 0 | K22: 0 | M22: Serviço | N22: Serviço | O22: - | P22: AGETOP | Q22: 20118 | R22: DEM.ALVEN.TIJOLO S/REAP. C/TR.ATE CB. E CARGA | S22: m3 | T22: 27.78 | W22: 0
A23: =CHOOSE(1+LOG(1+2*(ORÇAMENTO.Nivel="Nível 1")+4*(ORÇAMENTO.Nivel="Nível 2")+8*(ORÇAMENTO.Nivel="Nível 3")+16*(ORÇAMENTO.Nivel="Nível 4")+32*(ORÇAMENTO.Nivel="Serviço"),2),0,1,2,3,4,"S") -> S | B23: =IF(OR(C23="s",C23=0),OFFSET(B23,-1,0),C23) -> 3 | C23: =IF(OFFSET(C23,-1,0)="L",1,IF(OFFSET(C23,-1,0)=1,2,IF(OR(A23="s",A23=0),"S",IF(AND(OFFSET(C23,-1,0)=2,A23=4),3,IF(AND(OR(OFFSET(C23,-1,0)="s",OFFSET(C23,-1,0)=0),A23<>"s",A23>OFFSET(B23,-1,0)),OFFSET(B23,-1,0),A23))))) -> S | D23: =IF(OR(C23="S",C23=0),0,IF(ISERROR(K23),J23,SMALL(J23:K23,1))) -> 0 | E23: =IF($C23=1,OFFSET(E23,-1,0)+1,OFFSET(E23,-1,0)) -> 1 | F23: =IF($C23=1,0,IF($C23=2,OFFSET(F23,-1,0)+1,OFFSET(F23,-1,0))) -> 1 | G23: =IF(AND($C23<=2,$C23<>0),0,IF($C23=3,OFFSET(G23,-1,0)+1,OFFSET(G23,-1,0))) -> 1 | H23: =IF(AND($C23<=3,$C23<>0),0,IF($C23=4,OFFSET(H23,-1,0)+1,OFFSET(H23,-1,0))) -> 0 | I23: =IF(AND($C23<=4,$C23<>0),0,IF(AND($C23="S",$W23>0),OFFSET(I23,-1,0)+1,OFFSET(I23,-1,0))) -> 0 | J23: 0 | K23: 0 | M23: Serviço | N23: Serviço | O23: - | P23: AGETOP | Q23: 20202 | R23: RASPAGEM E LIMPEZA MANUAL DO TERRENO | S23: m2 | T23: 200 | W23: 0
A24: =CHOOSE(1+LOG(1+2*(ORÇAMENTO.Nivel="Nível 1")+4*(ORÇAMENTO.Nivel="Nível 2")+8*(ORÇAMENTO.Nivel="Nível 3")+16*(ORÇAMENTO.Nivel="Nível 4")+32*(ORÇAMENTO.Nivel="Serviço"),2),0,1,2,3,4,"S") -> S | B24: =IF(OR(C24="s",C24=0),OFFSET(B24,-1,0),C24) -> 3 | C24: =IF(OFFSET(C24,-1,0)="L",1,IF(OFFSET(C24,-1,0)=1,2,IF(OR(A24="s",A24=0),"S",IF(AND(OFFSET(C24,-1,0)=2,A24=4),3,IF(AND(OR(OFFSET(C24,-1,0)="s",OFFSET(C24,-1,0)=0),A24<>"s",A24>OFFSET(B24,-1,0)),OFFSET(B24,-1,0),A24))))) -> S | D24: =IF(OR(C24="S",C24=0),0,IF(ISERROR(K24),J24,SMALL(J24:K24,1))) -> 0 | E24: =IF($C24=1,OFFSET(E24,-1,0)+1,OFFSET(E24,-1,0)) -> 1 | F24: =IF($C24=1,0,IF($C24=2,OFFSET(F24,-1,0)+1,OFFSET(F24,-1,0))) -> 1 | G24: =IF(AND($C24<=2,$C24<>0),0,IF($C24=3,OFFSET(G24,-1,0)+1,OFFSET(G24,-1,0))) -> 1 | H24: =IF(AND($C24<=3,$C24<>0),0,IF($C24=4,OFFSET(H24,-1,0)+1,OFFSET(H24,-1,0))) -> 0 | I24: =IF(AND($C24<=4,$C24<>0),0,IF(AND($C24="S",$W24>0),OFFSET(I24,-1,0)+1,OFFSET(I24,-1,0))) -> 0 | J24: 0 | K24: 0 | M24: Serviço | N24: Serviço | O24: - | P24: AGETOP | Q24: 20203 | R24: CAPINA - (OBRAS CIVIS) | S24: m2 | T24: 77.91 | W24: 0
A25: =CHOOSE(1+LOG(1+2*(ORÇAMENTO.Nivel="Nível 1")+4*(ORÇAMENTO.Nivel="Nível 2")+8*(ORÇAMENTO.Nivel="Nível 3")+16*(ORÇAMENTO.Nivel="Nível 4")+32*(ORÇAMENTO.Nivel="Serviço"),2),0,1,2,3,4,"S") -> 3 | B25: =IF(OR(C25="s",C25=0),OFFSET(B25,-1,0),C25) -> 3 | C25: =IF(OFFSET(C25,-1,0)="L",1,IF(OFFSET(C25,-1,0)=1,2,IF(OR(A25="s",A25=0),"S",IF(AND(OFFSET(C25,-1,0)=2,A25=4),3,IF(AND(OR(OFFSET(C25,-1,0)="s",OFFSET(C25,-1,0)=0),A25<>"s",A25>OFFSET(B25,-1,0)),OFFSET(B25,-1,0),A25))))) -> 3 | D25: =IF(OR(C25="S",C25=0),0,IF(ISERROR(K25),J25,SMALL(J25:K25,1))) -> 2 | E25: =IF($C25=1,OFFSET(E25,-1,0)+1,OFFSET(E25,-1,0)) -> 1 | F25: =IF($C25=1,0,IF($C25=2,OFFSET(F25,-1,0)+1,OFFSET(F25,-1,0))) -> 1 | G25: =IF(AND($C25<=2,$C25<>0),0,IF($C25=3,OFFSET(G25,-1,0)+1,OFFSET(G25,-1,0))) -> 2 | H25: =IF(AND($C25<=3,$C25<>0),0,IF($C25=4,OFFSET(H25,-1,0)+1,OFFSET(H25,-1,0))) -> 0 | I25: =IF(AND($C25<=4,$C25<>0),0,IF(AND($C25="S",$W25>0),OFFSET(I25,-1,0)+1,OFFSET(I25,-1,0))) -> 0 | J25: 21 | K25: 2 | M25: Nível 3 | N25: Nível 3 | O25: - | P25: SINAPI | R25: REMOÇÃO DE JANELAS COM REAPROVEITAMENTO | S25: - | W25: 0
A26: =CHOOSE(1+LOG(1+2*(ORÇAMENTO.Nivel="Nível 1")+4*(ORÇAMENTO.Nivel="Nível 2")+8*(ORÇAMENTO.Nivel="Nível 3")+16*(ORÇAMENTO.Nivel="Nível 4")+32*(ORÇAMENTO.Nivel="Serviço"),2),0,1,2,3,4,"S") -> S | B26: 3 | C26: S | D26: 0 | E26: 1 | F26: 1 | G26: 2 | H26: 0 | I26: 0 | J26: 0 | K26: 0 | M26: Serviço | N26: Serviço | O26: - | P26: SINAPI | Q26: 97645 | R26: REMOÇÃO DE JANELAS, DE FORMA MANUAL, SEM REAPROVEITAMENTO. AF_12/2017 | S26: M2 | T26: 5.4 | W26: 0 | X26: Referência: AGETOP - 20106
A27: 3 | B27: 3 | C27: 3 | D27: 2 | E27: 1 | F27: 1 | G27: 3 | H27: 0 | I27: 0 | J27: 19 | K27: 2 | M27: Nível 3 | N27: Nível 3 | O27: - | P27: SINAPI | R27: CENTRAL DE GÁS | S27: - | W27: 0
A28: S | B28: 3 | C28: S | D28: 0 | E28: 1 | F28: 1 | G28: 3 | H28: 0 | I28: 0 | J28: 0 | K28: 0 | M28: Serviço | N28: Serviço | O28: - | P28: AGETOP | Q28: 20118 | R28: DEM.ALVEN.TIJOLO S/REAP. C/TR.ATE CB. E CARGA | S28: m3 | T28: 1.26 | W28: 0
A29: 3 | B29: 3 | C29: 3 | D29: 2 | E29: 1 | F29: 1 | G29: 4 | H29: 0 | I29: 0 | J29: 17 | K29: 2 | M29: Nível 3 | N29: Nível 3 | O29: - | P29: SINAPI | R29: TROCAR CALHA PÁTIO COBERTO 02 | S29: - | W29: 0
A30: S | B30: 3 | C30: S | D30: 0 | E30: 1 | F30: 1 | G30: 4 | H30: 0 | I30: 0 | J30: 0 | K30: 0 | M30: Serviço | N30: Serviço | O30: - | P30: AGETOP | Q30: 20157 | R30: DEMOLIÇÃO CALHAS/ RUFOS EM CHAPA C/TR.AT.C.B.E CARGA | S30: m2 | T30: 62.5 | W30: 0
A31: 3 | B31: 3 | C31: 3 | D31: 3 | E31: 1 | F31: 1 | G31: 5 | H31: 0 | I31: 0 | J31: 15 | K31: 3 | M31: Nível 3 | N31: Nível 3 | O31: - | P31: SINAPI | R31: MANUTENÇÃO DAS INFILTRAÇÕES NOS BANHEIROS | S31: - | W31: 0
A32: S | B32: 3 | C32: S | D32: 0 | E32: 1 | F32: 1 | G32: 5 | H32: 0 | I32: 0 | J32: 0 | K32: 0 | M32: Serviço | N32: Serviço | O32: - | P32: AGETOP | Q32: 20163 | R32: DEMOLIÇÃO DAS INSTALAÇÕES HIDROSANITÁRIAS E AFINS C/ TRANSP. ATÉ CB. E CARGA | S32: H | T32: 2.4 | W32: 0
A33: S | B33: 3 | C33: S | D33: 0 | E33: 1 | F33: 1 | G33: 5 | H33: 0 | I33: 0 | J33: 0 | K33: 0 | M33: Serviço | N33: Serviço | O33: - | P33: AGETOP | Q33: 20137 | R33: DEMOLIÇAO BACIA SANITARIA C/ TRANSP. ATÉ CB. E CARGA | S33: Un | T33: 5 | W33: 0
A34: 3 | B34: 3 | C34: 3 | D34: 8 | E34: 1 | F34: 1 | G34: 6 | H34: 0 | I34: 0 | J34: 12 | K34: 8 | M34: Nível 3 | N34: Nível 3 | O34: - | P34: SINAPI | R34: REFORMA DOS BANHEIROS | S34: - | W34: 0
A35: S | B35: 3 | C35: S | D35: 0 | E35: 1 | F35: 1 | G35: 6 | H35: 0 | I35: 0 | J35: 0 | K35: 0 | M35: Serviço | N35: Serviço | O35: - | P35: AGETOP | Q35: 20118 | R35: DEM.ALVEN.TIJOLO S/REAP. C/TR.ATE CB. E CARGA | S35: m3 | T35: 2.5 | W35: 0
A36: S | B36: 3 | C36: S | D36: 0 | E36: 1 | F36: 1 | G36: 6 | H36: 0 | I36: 0 | J36: 0 | K36: 0 | M36: Serviço | N36: Serviço | O36: - | P36: AGETOP | Q36: 20111 | R36: DEM.PISO CERAM.SOBRE LASTRO CONC.C/TR.CB.E CARGA | S36: m2 | T36: 10.1 | W36: 0
A37: S | B37: 3 | C37: S | D37: 0 | E37: 1 | F37: 1 | G37: 6 | H37: 0 | I37: 0 | J37: 0 | K37: 0 | M37: Serviço | N37: Serviço | O37: - | P37: AGETOP | Q37: 20134 | R37: DEM.DE FORRO GESSO C/TRANSP.ATE CB.E CARGA | S37: m2 | T37: 6.22 | W37: 0
A38: S | B38: 3 | C38: S | D38: 0 | E38: 1 | F38: 1 | G38: 6 | H38: 0 | I38: 0 | J38: 0 | K38: 0 | M38: Serviço | N38: Serviço | O38: - | P38: SINAPI | Q38: 97633 | R38: DEMOLIÇÃO DE REVESTIMENTO CERÂMICO, DE FORMA MANUAL, SEM REAPROVEITAMENTO. AF_12/2017 | S38: M2 | T38: 51 | W38: 0 | X38: Referência: AGETOP - 20115
A39: S | B39: 3 | C39: S | D39: 0 | E39: 1 | F39: 1 | G39: 6 | H39: 0 | I39: 0 | J39: 0 | K39: 0 | M39: Serviço | N39: Serviço | O39: - | P39: AGETOP | Q39: 20163 | R39: DEMOLIÇÃO DAS INSTALAÇÕES HIDROSANITÁRIAS E AFINS C/ TRANSP. ATÉ CB. E CARGA | S39: H | T39: 0.6 | W39: 0
A40: S | B40: 3 | C40: S | D40: 0 | E40: 1 | F40: 1 | G40: 6 | H40: 0 | I40: 0 | J40: 0 | K40: 0 | M40: Serviço | N40: Serviço | O40: - | P40: AGETOP | Q40: 20137 | R40: DEMOLIÇAO BACIA SANITARIA C/ TRANSP. ATÉ CB. E CARGA | S40: Un | T40: 2 | W40: 0
A41: S | B41: 3 | C41: S | D41: 0 | E41: 1 | F41: 1 | G41: 6 | H41: 0 | I41: 0 | J41: 0 | K41: 0 | M41: Serviço | N41: Serviço | O41: - | P41: SINAPI | Q41: 97644 | R41: REMOÇÃO DE PORTAS, DE FORMA MANUAL, SEM REAPROVEITAMENTO. AF_12/2017 | S41: M2 | T41: 3.15 | W41: 0 | X41: Referência: AGETOP - 20106
A42: 3 | B42: 3 | C42: 3 | D42: 2 | E42: 1 | F42: 1 | G42: 7 | H42: 0 | I42: 0 | J42: 4 | K42: 2 | M42: Nível 3 | N42: Nível 3 | O42: - | P42: SINAPI | R42: PISO TÁTIL | S42: - | W42: 0
A43: S | B43: 3 | C43: S | D43: 0 | E43: 1 | F43: 1 | G43: 7 | H43: 0 | I43: 0 | J43: 0 | K43: 0 | M43: Serviço | N43: Serviço | O43: - | P43: AGETOP | Q43: 20121 | R43: DEM. MANUAL EM CONCR.SIMPLES C/TR.ATE CB.E CARGA (O.C.) | S43: m3 | T43: 1.1 | W43: 0
A44: =CHOOSE(1+LOG(1+2*(ORÇAMENTO.Nivel="Nível 1")+4*(ORÇAMENTO.Nivel="Nível 2")+8*(ORÇAMENTO.Nivel="Nível 3")+16*(ORÇAMENTO.Nivel="Nível 4")+32*(ORÇAMENTO.Nivel="Serviço"),2),0,1,2,3,4,"S") -> 3 | B44: =IF(OR(C44="s",C44=0),OFFSET(B44,-1,0),C44) -> 3 | C44: =IF(OFFSET(C44,-1,0)="L",1,IF(OFFSET(C44,-1,0)=1,2,IF(OR(A44="s",A44=0),"S",IF(AND(OFFSET(C44,-1,0)=2,A44=4),3,IF(AND(OR(OFFSET(C44,-1,0)="s",OFFSET(C44,-1,0)=0),A44<>"s",A44>OFFSET(B44,-1,0)),OFFSET(B44,-1,0),A44))))) -> 3 | D44: =IF(OR(C44="S",C44=0),0,IF(ISERROR(K44),J44,SMALL(J44:K44,1))) -> 2 | E44: =IF($C44=1,OFFSET(E44,-1,0)+1,OFFSET(E44,-1,0)) -> 1 | F44: =IF($C44=1,0,IF($C44=2,OFFSET(F44,-1,0)+1,OFFSET(F44,-1,0))) -> 1 | G44: =IF(AND($C44<=2,$C44<>0),0,IF($C44=3,OFFSET(G44,-1,0)+1,OFFSET(G44,-1,0))) -> 8 | H44: =IF(AND($C44<=3,$C44<>0),0,IF($C44=4,OFFSET(H44,-1,0)+1,OFFSET(H44,-1,0))) -> 0 | I44: =IF(AND($C44<=4,$C44<>0),0,IF(AND($C44="S",$W44>0),OFFSET(I44,-1,0)+1,OFFSET(I44,-1,0))) -> 0 | J44: 2 | M44: Nível 3 | N44: Nível 3 | O44: - | P44: SINAPI | R44: OUTROS | S44: - | W44: 0
A45: S | B45: =IF(OR(C45="s",C45=0),OFFSET(B45,-1,0),C45) -> 3 | C45: =IF(OFFSET(C45,-1,0)="L",1,IF(OFFSET(C45,-1,0)=1,2,IF(OR(A45="s",A45=0),"S",IF(AND(OFFSET(C45,-1,0)=2,A45=4),3,IF(AND(OR(OFFSET(C45,-1,0)="s",OFFSET(C45,-1,0)=0),A45<>"s",A45>OFFSET(B45,-1,0)),OFFSET(B45,-1,0),A45))))) -> S | D45: =IF(OR(C45="S",C45=0),0,IF(ISERROR(K45),J45,SMALL(J45:K45,1))) -> 0 | E45: =IF($C45=1,OFFSET(E45,-1,0)+1,OFFSET(E45,-1,0)) -> 1 | F45: =IF($C45=1,0,IF($C45=2,OFFSET(F45,-1,0)+1,OFFSET(F45,-1,0))) -> 1 | G45: =IF(AND($C45<=2,$C45<>0),0,IF($C45=3,OFFSET(G45,-1,0)+1,OFFSET(G45,-1,0))) -> 8 | H45: =IF(AND($C45<=3,$C45<>0),0,IF($C45=4,OFFSET(H45,-1,0)+1,OFFSET(H45,-1,0))) -> 0 | I45: =IF(AND($C45<=4,$C45<>0),0,IF(AND($C45="S",$W45>0),OFFSET(I45,-1,0)+1,OFFSET(I45,-1,0))) -> 0 | J45: 0 | K45: 0 | M45: Serviço | N45: Serviço | O45: - | P45: SINAPI | Q45: 74209/1 | R45: PLACA DE OBRA EM CHAPA DE ACO GALVANIZADO | S45: M2 | T45: 7.5 | W45: 0 | X45: Referência: AGETOP - 21301
A46: 2 | B46: 2 | C46: 2 | D46: 3 | E46: 1 | F46: 2 | G46: 0 | H46: 0 | I46: 0 | J46: 402 | K46: 3 | M46: Nível 2 | N46: Nível 2 | O46: - | P46: AGETOP | R46: TRANSPORTES | S46: - | W46: 0
A47: S | B47: 2 | C47: S | D47: 0 | E47: 1 | F47: 2 | G47: 0 | H47: 0 | I47: 0 | J47: 0 | K47: 0 | M47: Serviço | N47: Serviço | O47: - | P47: SINAPI | Q47: 72900 | R47: TRANSPORTE DE ENTULHO COM CAMINHAO BASCULANTE 6 M3, RODOVIA PAVIMENTADA, DMT 0,5 A 1,0 KM | S47: M3 | T47: 78.53 | W47: 0
A48: S | B48: 2 | C48: S | D48: 0 | E48: 1 | F48: 2 | G48: 0 | H48: 0 | I48: 0 | J48: 0 | K48: 0 | M48: Serviço | N48: Serviço | O48: - | P48: SINAPI | Q48: 72897 | R48: CARGA MANUAL DE ENTULHO EM CAMINHAO BASCULANTE 6 M3 | S48: M3 | T48: 78.53 | W48: 0
A49: 2 | B49: 2 | C49: 2 | D49: 5 | E49: 1 | F49: 3 | G49: 0 | H49: 0 | I49: 0 | J49: 399 | K49: 5 | M49: Nível 2 | N49: Nível 2 | O49: - | P49: AGETOP | R49: SERVIÇO EM TERRA | S49: - | W49: 0
A50: 3 | B50: 3 | C50: 3 | D50: 4 | E50: 1 | F50: 3 | G50: 1 | H50: 0 | I50: 0 | J50: 4 | K50: 9 | M50: Nível 3 | N50: Nível 3 | O50: - | R50: OUTROS SERVIÇOS | S50: - | W50: 0
A51: =CHOOSE(1+LOG(1+2*(ORÇAMENTO.Nivel="Nível 1")+4*(ORÇAMENTO.Nivel="Nível 2")+8*(ORÇAMENTO.Nivel="Nível 3")+16*(ORÇAMENTO.Nivel="Nível 4")+32*(ORÇAMENTO.Nivel="Serviço"),2),0,1,2,3,4,"S") -> 4 | B51: =IF(OR(C51="s",C51=0),OFFSET(B51,-1,0),C51) -> 4 | C51: =IF(OFFSET(C51,-1,0)="L",1,IF(OFFSET(C51,-1,0)=1,2,IF(OR(A51="s",A51=0),"S",IF(AND(OFFSET(C51,-1,0)=2,A51=4),3,IF(AND(OR(OFFSET(C51,-1,0)="s",OFFSET(C51,-1,0)=0),A51<>"s",A51>OFFSET(B51,-1,0)),OFFSET(B51,-1,0),A51))))) -> 4 | D51: =IF(OR(C51="S",C51=0),0,IF(ISERROR(K51),J51,SMALL(J51:K51,1))) -> 3 | E51: =IF($C51=1,OFFSET(E51,-1,0)+1,OFFSET(E51,-1,0)) -> 1 | F51: =IF($C51=1,0,IF($C51=2,OFFSET(F51,-1,0)+1,OFFSET(F51,-1,0))) -> 3 | G51: =IF(AND($C51<=2,$C51<>0),0,IF($C51=3,OFFSET(G51,-1,0)+1,OFFSET(G51,-1,0))) -> 1 | H51: =IF(AND($C51<=3,$C51<>0),0,IF($C51=4,OFFSET(H51,-1,0)+1,OFFSET(H51,-1,0))) -> 1 | I51: =IF(AND($C51<=4,$C51<>0),0,IF(AND($C51="S",$W51>0),OFFSET(I51,-1,0)+1,OFFSET(I51,-1,0))) -> 0 | J51: =IF(OR($C51="S",$C51=0),0,MATCH(0,OFFSET($D51,1,$C51,ROW($C$448)-ROW($C51)),0)) -> 3 | K51: =IF(OR($C51="S",$C51=0),0,MATCH(OFFSET($D51,0,$C51)+1,OFFSET($D51,1,$C51,ROW($C$448)-ROW($C51)),0)) -> 33 | M51: Nível 4 | N51: Nível 4 | O51: - | P51: AGETOP | Q51: 20202 | R51: REFORMA GERAL DO BLOCO EM ANEXO | S51: m2 | W51: 0
A52: S | B52: 4 | C52: S | D52: 0 | E52: 1 | F52: 3 | G52: 1 | H52: 1 | I52: 0 | J52: 0 | K52: 0 | M52: Serviço | N52: Serviço | O52: - | P52: AGETOP | Q52: 41140 | R52: REGULARIZAÇÃO DO TERRENO SEM APILOAMENTO COM TRANSPORTE MANUAL DA TERRA ESCAVADA | S52: m2 | T52: 123.68 | W52: 0
A53: =CHOOSE(1+LOG(1+2*(ORÇAMENTO.Nivel="Nível 1")+4*(ORÇAMENTO.Nivel="Nível 2")+8*(ORÇAMENTO.Nivel="Nível 3")+16*(ORÇAMENTO.Nivel="Nível 4")+32*(ORÇAMENTO.Nivel="Serviço"),2),0,1,2,3,4,"S") -> S | B53: =IF(OR(C53="s",C53=0),OFFSET(B53,-1,0),C53) -> 4 | C53: =IF(OFFSET(C53,-1,0)="L",1,IF(OFFSET(C53,-1,0)=1,2,IF(OR(A53="s",A53=0),"S",IF(AND(OFFSET(C53,-1,0)=2,A53=4),3,IF(AND(OR(OFFSET(C53,-1,0)="s",OFFSET(C53,-1,0)=0),A53<>"s",A53>OFFSET(B53,-1,0)),OFFSET(B53,-1,0),A53))))) -> S | D53: =IF(OR(C53="S",C53=0),0,IF(ISERROR(K53),J53,SMALL(J53:K53,1))) -> 0 | E53: =IF($C53=1,OFFSET(E53,-1,0)+1,OFFSET(E53,-1,0)) -> 1 | F53: =IF($C53=1,0,IF($C53=2,OFFSET(F53,-1,0)+1,OFFSET(F53,-1,0))) -> 3 | G53: =IF(AND($C53<=2,$C53<>0),0,IF($C53=3,OFFSET(G53,-1,0)+1,OFFSET(G53,-1,0))) -> 1 | H53: =IF(AND($C53<=3,$C53<>0),0,IF($C53=4,OFFSET(H53,-1,0)+1,OFFSET(H53,-1,0))) -> 1 | I53: =IF(AND($C53<=4,$C53<>0),0,IF(AND($C53="S",$W53>0),OFFSET(I53,-1,0)+1,OFFSET(I53,-1,0))) -> 0 | J53: 0 | K53: 0 | M53: Serviço | N53: Serviço | O53: - | P53: AGETOP | Q53: 41002 | R53: APILOAMENTO | S53: m2 | T53: 123.68 | W53: 0
A54: =CHOOSE(1+LOG(1+2*(ORÇAMENTO.Nivel="Nível 1")+4*(ORÇAMENTO.Nivel="Nível 2")+8*(ORÇAMENTO.Nivel="Nível 3")+16*(ORÇAMENTO.Nivel="Nível 4")+32*(ORÇAMENTO.Nivel="Serviço"),2),0,1,2,3,4,"S") -> 2 | B54: =IF(OR(C54="s",C54=0),OFFSET(B54,-1,0),C54) -> 2 | C54: =IF(OFFSET(C54,-1,0)="L",1,IF(OFFSET(C54,-1,0)=1,2,IF(OR(A54="s",A54=0),"S",IF(AND(OFFSET(C54,-1,0)=2,A54=4),3,IF(AND(OR(OFFSET(C54,-1,0)="s",OFFSET(C54,-1,0)=0),A54<>"s",A54>OFFSET(B54,-1,0)),OFFSET(B54,-1,0),A54))))) -> 2 | D54: =IF(OR(C54="S",C54=0),0,IF(ISERROR(K54),J54,SMALL(J54:K54,1))) -> 16 | E54: =IF($C54=1,OFFSET(E54,-1,0)+1,OFFSET(E54,-1,0)) -> 1 | F54: =IF($C54=1,0,IF($C54=2,OFFSET(F54,-1,0)+1,OFFSET(F54,-1,0))) -> 4 | G54: =IF(AND($C54<=2,$C54<>0),0,IF($C54=3,OFFSET(G54,-1,0)+1,OFFSET(G54,-1,0))) -> 0 | H54: =IF(AND($C54<=3,$C54<>0),0,IF($C54=4,OFFSET(H54,-1,0)+1,OFFSET(H54,-1,0))) -> 0 | I54: =IF(AND($C54<=4,$C54<>0),0,IF(AND($C54="S",$W54>0),OFFSET(I54,-1,0)+1,OFFSET(I54,-1,0))) -> 0 | J54: 394 | K54: 16 | M54: Nível 2 | N54: Nível 2 | O54: - | P54: AGETOP | R54: FUNDAÇÕES E SONDAGENS | S54: - | W54: 0
A55: 3 | B55: 3 | C55: 3 | D55: 4 | E55: 1 | F55: 4 | G55: 1 | H55: 0 | I55: 0 | J55: 15 | K55: 4 | M55: Nível 3 | N55: Nível 3 | O55: - | P55: SINAPI | R55: ESTACAS | S55: - | W55: 0
A56: S | B56: 3 | C56: S | D56: 0 | E56: 1 | F56: 4 | G56: 1 | H56: 0 | I56: 0 | J56: 0 | K56: 0 | M56: Serviço | N56: Serviço | O56: - | P56: SINAPI | Q56: 98230 | R56: ESTACA BROCA DE CONCRETO, DIÂMETRO DE 30 CM, PROFUNDIDADE DE ATÉ 3 M, ESCAVAÇÃO MANUAL COM TRADO CONCHA, NÃO ARMADA. AF_03/2018 | S56: M | T56: 16 | W56: 0 | X56: Referência: AGETOP - 50302
A57: S | B57: 3 | C57: S | D57: 0 | E57: 1 | F57: 4 | G57: 1 | H57: 0 | I57: 0 | J57: 0 | K57: 0 | M57: Serviço | N57: Serviço | O57: - | P57: SINAPI | Q57: 95577 | R57: MONTAGEM DE ARMADURA LONGITUDINAL DE ESTACAS DE SEÇÃO CIRCULAR, DIÂMETRO = 10,0 MM. AF_11/2016 | S57: KG | T57: 60 | W57: 0 | X57: Referência: AGETOP - 52005
A58: S | B58: 3 | C58: S | D58: 0 | E58: 1 | F58: 4 | G58: 1 | H58: 0 | I58: 0 | J58: 0 | K58: 0 | M58: Serviço | N58: Serviço | O58: - | P58: SINAPI | Q58: 95583 | R58: MONTAGEM DE ARMADURA TRANSVERSAL DE ESTACAS DE SEÇÃO CIRCULAR, DIÂMETRO = 5,0 MM. AF_11/2016 | S58: KG | T58: 18 | W58: 0 | X58: Referência: AGETOP - 52014
A59: 3 | B59: 3 | C59: 3 | D59: 5 | E59: 1 | F59: 4 | G59: 2 | H59: 0 | I59: 0 | J59: 11 | K59: 5 | M59: Nível 3 | N59: Nível 3 | O59: - | P59: SINAPI | R59: BLOCO | S59: - | W59: 0
A60: S | B60: 3 | C60: S | D60: 0 | E60: 1 | F60: 4 | G60: 2 | H60: 0 | I60: 0 | J60: 0 | K60: 0 | M60: Serviço | N60: Serviço | O60: - | P60: SINAPI | Q60: 96522 | R60: ESCAVAÇÃO MANUAL PARA BLOCO DE COROAMENTO OU SAPATA, SEM PREVISÃO DE FÔRMA. AF_06/2017 | S60: M3 | T60: 0.792 | W60: 0 | X60: Referência: AGETOP - 50901
A61: S | B61: 3 | C61: S | D61: 0 | E61: 1 | F61: 4 | G61: 2 | H61: 0 | I61: 0 | J61: 0 | K61: 0 | M61: Serviço | N61: Serviço | O61: - | P61: AGETOP | Q61: 50902 | R61: APILOAMENTO (BLOCOS/SAPATAS) | S61: m2 | T61: 1.44 | W61: 0
A62: S | B62: 3 | C62: S | D62: 0 | E62: 1 | F62: 4 | G62: 2 | H62: 0 | I62: 0 | J62: 0 | K62: 0 | M62: Serviço | N62: Serviço | O62: - | P62: SINAPI | Q62: 74157/4 | R62: LANCAMENTO/APLICACAO MANUAL DE CONCRETO EM FUNDACOES | S62: M3 | T62: 0.94 | W62: 0 | X62: Referência: AGETOP - 51026
A63: S | B63: 3 | C63: S | D63: 0 | E63: 1 | F63: 4 | G63: 2 | H63: 0 | I63: 0 | J63: 0 | K63: 0 | M63: Serviço | N63: Serviço | O63: - | P63: SINAPI | Q63: 96543 | R63: ARMAÇÃO DE BLOCO, VIGA BALDRAME E SAPATA UTILIZANDO AÇO CA-60 DE 5 MM - MONTAGEM. AF_06/2017 | S63: KG | T63: 11.63636364 | W63: 0 | X63: Referência: AGETOP - 52014
A64: 3 | B64: 3 | C64: 3 | D64: 6 | E64: 1 | F64: 4 | G64: 3 | H64: 0 | I64: 0 | J64: 6 | K64: 170 | M64: Nível 3 | N64: Nível 3 | O64: - | P64: SINAPI | R64: VIGAS BALDRAMES | S64: - | W64: 0
A65: S | B65: 3 | C65: S | D65: 0 | E65: 1 | F65: 4 | G65: 3 | H65: 0 | I65: 0 | J65: 0 | K65: 0 | M65: Serviço | N65: Serviço | O65: - | P65: SINAPI | Q65: 96526 | R65: ESCAVAÇÃO MANUAL DE VALA PARA VIGA BALDRAME, SEM PREVISÃO DE FÔRMA. AF_06/2017 | S65: M3 | T65: 1.726666667 | W65: 0 | X65: Referência: AGETOP - 40101
A66: S | B66: 3 | C66: S | D66: 0 | E66: 1 | F66: 4 | G66: 3 | H66: 0 | I66: 0 | J66: 0 | K66: 0 | M66: Serviço | N66: Serviço | O66: - | P66: AGETOP | Q66: 60191 | R66: FORMA DE TABUA CINTA BALDRAME U=8 VEZES | S66: m2 | T66: 12.25 | W66: 0
A67: S | B67: 3 | C67: S | D67: 0 | E67: 1 | F67: 4 | G67: 3 | H67: 0 | I67: 0 | J67: 0 | K67: 0 | M67: Serviço | N67: Serviço | O67: - | P67: SINAPI | Q67: 74157/4 | R67: LANCAMENTO/APLICACAO MANUAL DE CONCRETO EM FUNDACOES | S67: M3 | T67: 0.74 | W67: 0 | X67: Referência: AGETOP - 51026
A68: S | B68: 3 | C68: S | D68: 0 | E68: 1 | F68: 4 | G68: 3 | H68: 0 | I68: 0 | J68: 0 | K68: 0 | M68: Serviço | N68: Serviço | O68: - | P68: SINAPI | Q68: 96545 | R68: ARMAÇÃO DE BLOCO, VIGA BALDRAME OU SAPATA UTILIZANDO AÇO CA-50 DE 8 MM - MONTAGEM. AF_06/2017 | S68: KG | T68: 24.63636364 | W68: 0 | X68: Referência: AGETOP - 52004
A69: S | B69: 3 | C69: S | D69: 0 | E69: 1 | F69: 4 | G69: 3 | H69: 0 | I69: 0 | J69: 0 | K69: 0 | M69: Serviço | N69: Serviço | O69: - | P69: SINAPI | Q69: 96543 | R69: ARMAÇÃO DE BLOCO, VIGA BALDRAME E SAPATA UTILIZANDO AÇO CA-60 DE 5 MM - MONTAGEM. AF_06/2017 | S69: KG | T69: 11.45454545 | W69: 0 | X69: Referência: AGETOP - 52014
A70: =CHOOSE(1+LOG(1+2*(ORÇAMENTO.Nivel="Nível 1")+4*(ORÇAMENTO.Nivel="Nível 2")+8*(ORÇAMENTO.Nivel="Nível 3")+16*(ORÇAMENTO.Nivel="Nível 4")+32*(ORÇAMENTO.Nivel="Serviço"),2),0,1,2,3,4,"S") -> 2 | B70: =IF(OR(C70="s",C70=0),OFFSET(B70,-1,0),C70) -> 2 | C70: =IF(OFFSET(C70,-1,0)="L",1,IF(OFFSET(C70,-1,0)=1,2,IF(OR(A70="s",A70=0),"S",IF(AND(OFFSET(C70,-1,0)=2,A70=4),3,IF(AND(OR(OFFSET(C70,-1,0)="s",OFFSET(C70,-1,0)=0),A70<>"s",A70>OFFSET(B70,-1,0)),OFFSET(B70,-1,0),A70))))) -> 2 | D70: =IF(OR(C70="S",C70=0),0,IF(ISERROR(K70),J70,SMALL(J70:K70,1))) -> 18 | E70: =IF($C70=1,OFFSET(E70,-1,0)+1,OFFSET(E70,-1,0)) -> 1 | F70: =IF($C70=1,0,IF($C70=2,OFFSET(F70,-1,0)+1,OFFSET(F70,-1,0))) -> 5 | G70: =IF(AND($C70<=2,$C70<>0),0,IF($C70=3,OFFSET(G70,-1,0)+1,OFFSET(G70,-1,0))) -> 0 | H70: =IF(AND($C70<=3,$C70<>0),0,IF($C70=4,OFFSET(H70,-1,0)+1,OFFSET(H70,-1,0))) -> 0 | I70: =IF(AND($C70<=4,$C70<>0),0,IF(AND($C70="S",$W70>0),OFFSET(I70,-1,0)+1,OFFSET(I70,-1,0))) -> 0 | J70: 378 | K70: 18 | M70: Nível 2 | N70: Nível 2 | O70: - | P70: SINAPI | R70: ESTRUTURA | S70: - | W70: 0
A71: 3 | B71: 3 | C71: 3 | D71: 5 | E71: 1 | F71: 5 | G71: 1 | H71: 0 | I71: 0 | J71: 17 | K71: 5 | M71: Nível 3 | N71: Nível 3 | O71: - | P71: AGETOP | R71: PILARES | S71: - | W71: 0
A72: S | B72: 3 | C72: S | D72: 0 | E72: 1 | F72: 5 | G72: 1 | H72: 0 | I72: 0 | J72: 0 | K72: 0 | M72: Serviço | N72: Serviço | O72: - | P72: SINAPI | Q72: 92426 | R72: MONTAGEM E DESMONTAGEM DE FÔRMA DE PILARES RETANGULARES E ESTRUTURAS SIMILARES COM ÁREA MÉDIA DAS SEÇÕES MENOR OU IGUAL A 0,25 M², PÉ-DIREITO SIMPLES, EM CHAPA DE MADEIRA COMPENSADA RESINADA, 8 UTILIZAÇÕES. AF_12/2015 | S72: M2 | T72: 14.91 | W72: 0
A73: S | B73: 3 | C73: S | D73: 0 | E73: 1 | F73: 5 | G73: 1 | H73: 0 | I73: 0 | J73: 0 | K73: 0 | M73: Serviço | N73: Serviço | O73: - | P73: SINAPI | Q73: 92873 | R73: LANÇAMENTO COM USO DE BALDES, ADENSAMENTO E ACABAMENTO DE CONCRETO EM ESTRUTURAS. AF_12/2015 | S73: M3 | T73: 0.85 | W73: 0 | X73: Referência: AGETOP - 60801
A74: S | B74: 3 | C74: S | D74: 0 | E74: 1 | F74: 5 | G74: 1 | H74: 0 | I74: 0 | J74: =IF(OR($C74="S",$C74=0),0,MATCH(0,OFFSET($D74,1,$C74,ROW($C$448)-ROW($C74)),0)) -> 0 | K74: =IF(OR($C74="S",$C74=0),0,MATCH(OFFSET($D74,0,$C74)+1,OFFSET($D74,1,$C74,ROW($C$448)-ROW($C74)),0)) -> 0 | M74: Serviço | N74: Serviço | O74: - | P74: SINAPI | Q74: 92778 | R74: ARMAÇÃO DE PILAR OU VIGA DE UMA ESTRUTURA CONVENCIONAL DE CONCRETO ARMADO EM UMA EDIFICAÇÃO TÉRREA OU SOBRADO UTILIZANDO AÇO CA-50 DE 10,0 MM - MONTAGEM. AF_12/2015 | S74: KG | T74: 55.72727273 | W74: 0 | X74: Referência: AGETOP - 60305
A75: S | B75: 3 | C75: S | D75: 0 | E75: 1 | F75: 5 | G75: 1 | H75: 0 | I75: 0 | J75: 0 | K75: 0 | M75: Serviço | N75: Serviço | O75: - | P75: SINAPI | Q75: 92775 | R75: ARMAÇÃO DE PILAR OU VIGA DE UMA ESTRUTURA CONVENCIONAL DE CONCRETO ARMADO EM UMA EDIFICAÇÃO TÉRREA OU SOBRADO UTILIZANDO AÇO CA-60 DE 5,0 MM - MONTAGEM. AF_12/2015 | S75: KG | T75: 18.54545455 | W75: 0 | X75: Referência: AGETOP - 60314
A76: 3 | B76: 3 | C76: 3 | D76: 5 | E76: 1 | F76: 5 | G76: 2 | H76: 0 | I76: 0 | J76: 12 | K76: 5 | M76: Nível 3 | N76: Nível 3 | O76: - | R76: VIGAS DE COBERTURA | S76: - | W76: 0
A77: S | B77: 3 | C77: S | D77: 0 | E77: 1 | F77: 5 | G77: 2 | H77: 0 | I77: 0 | J77: 0 | K77: 0 | M77: Serviço | N77: Serviço | O77: - | P77: SINAPI | Q77: 92464 | R77: MONTAGEM E DESMONTAGEM DE FÔRMA DE VIGA, ESCORAMENTO METÁLICO, PÉ-DIREITO SIMPLES, EM CHAPA DE MADEIRA RESINADA, 8 UTILIZAÇÕES. AF_12/2015 | S77: M2 | T77: 7.93 | W77: 0 | X77: Referência: AGETOP - 60209
A78: S | B78: 3 | C78: S | D78: 0 | E78: 1 | F78: 5 | G78: 2 | H78: 0 | I78: 0 | J78: 0 | K78: 0 | M78: Serviço | N78: Serviço | O78: - | P78: SINAPI | Q78: 92873 | R78: LANÇAMENTO COM USO DE BALDES, ADENSAMENTO E ACABAMENTO DE CONCRETO EM ESTRUTURAS. AF_12/2015 | S78: M3 | T78: 0.46 | W78: 0 | X78: Referência: AGETOP - 60801
A79: S | B79: 3 | C79: S | D79: 0 | E79: 1 | F79: 5 | G79: 2 | H79: 0 | I79: 0 | J79: 0 | K79: 0 | M79: Serviço | N79: Serviço | O79: - | P79: SINAPI | Q79: 92777 | R79: ARMAÇÃO DE PILAR OU VIGA DE UMA ESTRUTURA CONVENCIONAL DE CONCRETO ARMADO EM UMA EDIFICAÇÃO TÉRREA OU SOBRADO UTILIZANDO AÇO CA-50 DE 8,0 MM - MONTAGEM. AF_12/2015 | S79: KG | T79: 18.27272727 | W79: 0 | X79: Referência: AGETOP - 60304
A80: S | B80: 3 | C80: S | D80: 0 | E80: 1 | F80: 5 | G80: 2 | H80: 0 | I80: 0 | J80: 0 | K80: 0 | M80: Serviço | N80: Serviço | O80: - | P80: SINAPI | Q80: 92775 | R80: ARMAÇÃO DE PILAR OU VIGA DE UMA ESTRUTURA CONVENCIONAL DE CONCRETO ARMADO EM UMA EDIFICAÇÃO TÉRREA OU SOBRADO UTILIZANDO AÇO CA-60 DE 5,0 MM - MONTAGEM. AF_12/2015 | S80: KG | T80: 10.09090909 | W80: 0 | X80: Referência: AGETOP - 60314
A81: 3 | B81: 3 | C81: 3 | D81: 7 | E81: 1 | F81: 5 | G81: 3 | H81: 0 | I81: 0 | J81: 7 | K81: 153 | M81: Nível 3 | N81: Nível 3 | O81: - | P81: SINAPI | R81: OUTROS | S81: - | W81: 0
A82: =CHOOSE(1+LOG(1+2*(ORÇAMENTO.Nivel="Nível 1")+4*(ORÇAMENTO.Nivel="Nível 2")+8*(ORÇAMENTO.Nivel="Nível 3")+16*(ORÇAMENTO.Nivel="Nível 4")+32*(ORÇAMENTO.Nivel="Serviço"),2),0,1,2,3,4,"S") -> 4 | B82: =IF(OR(C82="s",C82=0),OFFSET(B82,-1,0),C82) -> 4 | C82: =IF(OFFSET(C82,-1,0)="L",1,IF(OFFSET(C82,-1,0)=1,2,IF(OR(A82="s",A82=0),"S",IF(AND(OFFSET(C82,-1,0)=2,A82=4),3,IF(AND(OR(OFFSET(C82,-1,0)="s",OFFSET(C82,-1,0)=0),A82<>"s",A82>OFFSET(B82,-1,0)),OFFSET(B82,-1,0),A82))))) -> 4 | D82: =IF(OR(C82="S",C82=0),0,IF(ISERROR(K82),J82,SMALL(J82:K82,1))) -> 2 | E82: =IF($C82=1,OFFSET(E82,-1,0)+1,OFFSET(E82,-1,0)) -> 1 | F82: =IF($C82=1,0,IF($C82=2,OFFSET(F82,-1,0)+1,OFFSET(F82,-1,0))) -> 5 | G82: =IF(AND($C82<=2,$C82<>0),0,IF($C82=3,OFFSET(G82,-1,0)+1,OFFSET(G82,-1,0))) -> 3 | H82: =IF(AND($C82<=3,$C82<>0),0,IF($C82=4,OFFSET(H82,-1,0)+1,OFFSET(H82,-1,0))) -> 1 | I82: =IF(AND($C82<=4,$C82<>0),0,IF(AND($C82="S",$W82>0),OFFSET(I82,-1,0)+1,OFFSET(I82,-1,0))) -> 0 | J82: 6 | K82: 2 | M82: Nível 4 | N82: Nível 4 | O82: - | P82: SINAPI | R82: SALA DO GRÊMIO | S82: - | W82: 0
A83: S | B83: 4 | C83: S | D83: 0 | E83: 1 | F83: 5 | G83: 3 | H83: 1 | I83: 0 | J83: 0 | K83: 0 | M83: Serviço | N83: Serviço | O83: - | P83: AGETOP | Q83: 60010 | R83: VERGA/CONTRAVERGA EM CONCRETO ARMADO FCK = 20 MPA | S83: m3 | T83: 0.2 | W83: 0
A84: 4 | B84: 4 | C84: 4 | D84: 2 | E84: 1 | F84: 5 | G84: 3 | H84: 2 | I84: 0 | J84: 4 | K84: 2 | M84: Nível 4 | N84: Nível 4 | O84: - | P84: SINAPI | R84: REFORMA GERAL DO BLOCO EM ANEXO | S84: - | W84: 0
A85: S | B85: 4 | C85: S | D85: 0 | E85: 1 | F85: 5 | G85: 3 | H85: 2 | I85: 0 | J85: 0 | K85: 0 | M85: Serviço | N85: Serviço | O85: - | P85: AGETOP | Q85: 60010 | R85: VERGA/CONTRAVERGA EM CONCRETO ARMADO FCK = 20 MPA | S85: m3 | T85: 0.18 | W85: 0
A86: 4 | B86: 4 | C86: 4 | D86: 2 | E86: 1 | F86: 5 | G86: 3 | H86: 3 | I86: 0 | J86: 2 | K86: 93 | M86: Nível 4 | N86: Nível 4 | O86: - | P86: SINAPI | R86: REFORMA DOS BANHEIROS | S86: - | W86: 0
A87: S | B87: 4 | C87: S | D87: 0 | E87: 1 | F87: 5 | G87: 3 | H87: 3 | I87: 0 | J87: 0 | K87: 0 | M87: Serviço | N87: Serviço | O87: - | P87: AGETOP | Q87: 60010 | R87: VERGA/CONTRAVERGA EM CONCRETO ARMADO FCK = 20 MPA | S87: m3 | T87: 0.13 | W87: 0
A88: =CHOOSE(1+LOG(1+2*(ORÇAMENTO.Nivel="Nível 1")+4*(ORÇAMENTO.Nivel="Nível 2")+8*(ORÇAMENTO.Nivel="Nível 3")+16*(ORÇAMENTO.Nivel="Nível 4")+32*(ORÇAMENTO.Nivel="Serviço"),2),0,1,2,3,4,"S") -> 2 | B88: =IF(OR(C88="s",C88=0),OFFSET(B88,-1,0),C88) -> 2 | C88: =IF(OFFSET(C88,-1,0)="L",1,IF(OFFSET(C88,-1,0)=1,2,IF(OR(A88="s",A88=0),"S",IF(AND(OFFSET(C88,-1,0)=2,A88=4),3,IF(AND(OR(OFFSET(C88,-1,0)="s",OFFSET(C88,-1,0)=0),A88<>"s",A88>OFFSET(B88,-1,0)),OFFSET(B88,-1,0),A88))))) -> 2 | D88: =IF(OR(C88="S",C88=0),0,IF(ISERROR(K88),J88,SMALL(J88:K88,1))) -> 70 | E88: =IF($C88=1,OFFSET(E88,-1,0)+1,OFFSET(E88,-1,0)) -> 1 | F88: =IF($C88=1,0,IF($C88=2,OFFSET(F88,-1,0)+1,OFFSET(F88,-1,0))) -> 6 | G88: =IF(AND($C88<=2,$C88<>0),0,IF($C88=3,OFFSET(G88,-1,0)+1,OFFSET(G88,-1,0))) -> 0 | H88: =IF(AND($C88<=3,$C88<>0),0,IF($C88=4,OFFSET(H88,-1,0)+1,OFFSET(H88,-1,0))) -> 0 | I88: =IF(AND($C88<=4,$C88<>0),0,IF(AND($C88="S",$W88>0),OFFSET(I88,-1,0)+1,OFFSET(I88,-1,0))) -> 0 | J88: 360 | K88: 70 | M88: Nível 2 | N88: Nível 2 | O88: - | R88: INSTALAÇÕES ELÉTRICAS | S88: - | W88: 0
A89: 3 | B89: 3 | C89: 3 | D89: 2 | E89: 1 | F89: 6 | G89: 1 | H89: 0 | I89: 0 | J89: 69 | K89: 2 | M89: Nível 3 | N89: Nível 3 | O89: - | P89: SINAPI | R89: SERVIÇO PRELIMINAR | S89: - | W89: 0
A90: S | B90: 3 | C90: S | D90: 0 | E90: 1 | F90: 6 | G90: 1 | H90: 0 | I90: 0 | J90: 0 | K90: 0 | M90: Serviço | N90: Serviço | O90: - | P90: AGETOP | Q90: 20162 | R90: DEMOLIÇÃO DAS INSTALAÇÕES ELÉTRICAS E AFINS C/ TRANSP. ATÉ CB. E CARGA | S90: H | T90: 8 | W90: 0
A91: 3 | B91: 3 | C91: 3 | D91: 3 | E91: 1 | F91: 6 | G91: 2 | H91: 0 | I91: 0 | J91: 67 | K91: 3 | M91: Nível 3 | N91: Nível 3 | O91: - | P91: AGETOP | R91: MOVIMENTAÇÃO DE TERRA | S91: - | W91: 0
A92: S | B92: 3 | C92: S | D92: 0 | E92: 1 | F92: 6 | G92: 2 | H92: 0 | I92: 0 | J92: 0 | K92: 0 | M92: Serviço | N92: Serviço | O92: - | P92: SINAPI | Q92: 93358 | R92: ESCAVAÇÃO MANUAL DE VALA COM PROFUNDIDADE MENOR OU IGUAL A 1,30 M. AF_03/2016 | S92: M3 | T92: 30 | W92: 0 | X92: Referência: AGETOP - 40101
A93: S | B93: 3 | C93: S | D93: 0 | E93: 1 | F93: 6 | G93: 2 | H93: 0 | I93: 0 | J93: 0 | K93: 0 | M93: Serviço | N93: Serviço | O93: - | P93: SINAPI | Q93: 96995 | R93: REATERRO MANUAL APILOADO COM SOQUETE. AF_10/2017 | S93: M3 | T93: 30 | W93: 0 | X93: Referência: AGETOP - 40902
A94: 3 | B94: 3 | C94: 3 | D94: 64 | E94: 1 | F94: 6 | G94: 3 | H94: 0 | I94: 0 | J94: 64 | K94: 140 | M94: Nível 3 | N94: Nível 3 | O94: - | R94: REFORMA ELÉTRICA | S94: - | W94: 0
A95: S | B95: 3 | C95: S | D95: 0 | E95: 1 | F95: 6 | G95: 3 | H95: 0 | I95: 0 | J95: =IF(OR($C95="S",$C95=0),0,MATCH(0,OFFSET($D95,1,$C95,ROW($C$448)-ROW($C95)),0)) -> 0 | K95: =IF(OR($C95="S",$C95=0),0,MATCH(OFFSET($D95,0,$C95)+1,OFFSET($D95,1,$C95,ROW($C$448)-ROW($C95)),0)) -> 0 | M95: Serviço | N95: Serviço | O95: - | P95: AGETOP | Q95: 70371 | R95: BRACADEIRA METALICA TIPO "D" DIAM. 3/4" | S95: Un | T95: 200 | W95: 0
A96: S | B96: 3 | C96: S | D96: 0 | E96: 1 | F96: 6 | G96: 3 | H96: 0 | I96: 0 | J96: 0 | K96: 0 | M96: Serviço | N96: Serviço | O96: - | P96: AGETOP | Q96: 70372 | R96: BRACADEIRA METALICA TIPO "D" DIAM. 1" | S96: Un | T96: 42 | W96: 0
A97: S | B97: 3 | C97: S | D97: 0 | E97: 1 | F97: 6 | G97: 3 | H97: 0 | I97: 0 | J97: 0 | K97: 0 | M97: Serviço | N97: Serviço | O97: - | P97: AGETOP | Q97: 70374 | R97: BRACADEIRA METALICA TIPO "D" DIAM. 1.1/2" | S97: Un | T97: 10 | W97: 0
A98: S | B98: 3 | C98: S | D98: 0 | E98: 1 | F98: 6 | G98: 3 | H98: 0 | I98: 0 | J98: 0 | K98: 0 | M98: Serviço | N98: Serviço | O98: - | P98: AGETOP | Q98: 70375 | R98: BRACADEIRA METALICA TIPO "D" DIAM. 2" | S98: Un | T98: 23 | W98: 0
A99: S | B99: 3 | C99: S | D99: 0 | E99: 1 | F99: 6 | G99: 3 | H99: 0 | I99: 0 | J99: 0 | K99: 0 | M99: Serviço | N99: Serviço | O99: - | P99: AGETOP | Q99: 70421 | R99: BUCHA E ARRUELA METALICA DIAM. 3/4" | S99: PR | T99: 200 | W99: 0
A100: S | B100: 3 | C100: S | D100: 0 | E100: 1 | F100: 6 | G100: 3 | H100: 0 | I100: 0 | J100: 0 | K100: 0 | M100: Serviço | N100: Serviço | O100: - | P100: AGETOP | Q100: 70422 | R100: BUCHA E ARRUELA METALICA DIAM. 1" | S100: PR | T100: 42 | W100: 0
A101: S | B101: 3 | C101: S | D101: 0 | E101: 1 | F101: 6 | G101: 3 | H101: 0 | I101: 0 | J101: 0 | K101: 0 | M101: Serviço | N101: Serviço | O101: - | P101: AGETOP | Q101: 70425 | R101: BUCHA E ARRUELA METALICA DIAM. 2" | S101: PR | T101: 10 | W101: 0
A102: S | B102: 3 | C102: S | D102: 0 | E102: 1 | F102: 6 | G102: 3 | H102: 0 | I102: 0 | J102: 0 | K102: 0 | M102: Serviço | N102: Serviço | O102: - | P102: AGETOP | Q102: 70426 | R102: BUCHA E ARRUELA METALICA DIAM. 2.1/2" | S102: PR | T102: 23 | W102: 0
A103: S | B103: 3 | C103: S | D103: 0 | E103: 1 | F103: 6 | G103: 3 | H103: 0 | I103: 0 | J103: 0 | K103: 0 | M103: Serviço | N103: Serviço | O103: - | P103: SINAPI | Q103: 91928 | R103: CABO DE COBRE FLEXÍVEL ISOLADO, 4 MM², ANTI-CHAMA 450/750 V, PARA CIRCUITOS TERMINAIS - FORNECIMENTO E INSTALAÇÃO. AF_12/2015 | S103: M | T103: 738 | W103: 0 | X103: Referência: AGETOP - 70564
A104: S | B104: 3 | C104: S | D104: 0 | E104: 1 | F104: 6 | G104: 3 | H104: 0 | I104: 0 | J104: 0 | K104: 0 | M104: Serviço | N104: Serviço | O104: - | P104: COMPOSIÇÃO | Q104: COMP 385_SEE | R104: DEMOLIÇÃO POSTE DE CONCRETO/METALICA ENTRE 10 E 15 METROS C/ REAPROVEITAMENTO C/ TRANSPORTE ATE CAÇAMBA E CARGA | S104: UN | T104: 1 | W104: 0
A105: S | B105: 3 | C105: S | D105: 0 | E105: 1 | F105: 6 | G105: 3 | H105: 0 | I105: 0 | J105: 0 | K105: 0 | M105: Serviço | N105: Serviço | O105: - | P105: AGETOP | Q105: 70720 | R105: CAIXA METÁLICA PARA MEDIDOR POLIFÁSICO PADRÃO ENEL 500X380X166MM | S105: Un | T105: 1 | W105: 0
A106: S | B106: 3 | C106: S | D106: 0 | E106: 1 | F106: 6 | G106: 3 | H106: 0 | I106: 0 | J106: 0 | K106: 0 | M106: Serviço | N106: Serviço | O106: - | P106: SINAPI | Q106: 98111 | R106: CAIXA DE INSPEÇÃO PARA ATERRAMENTO, CIRCULAR, EM POLIETILENO, DIÂMETRO INTERNO = 0,3 M. AF_05/2018 | S106: UN | T106: 1 | W106: 0
A107: S | B107: 3 | C107: S | D107: 0 | E107: 1 | F107: 6 | G107: 3 | H107: 0 | I107: 0 | J107: 0 | K107: 0 | M107: Serviço | N107: Serviço | O107: - | P107: SINAPI | Q107: 96986 | R107: HASTE DE ATERRAMENTO 3/4 PARA SPDA - FORNECIMENTO E INSTALAÇÃO. AF_12/2017 | S107: UN | T107: 4 | W107: 0
A108: S | B108: 3 | C108: S | D108: 0 | E108: 1 | F108: 6 | G108: 3 | H108: 0 | I108: 0 | J108: 0 | K108: 0 | M108: Serviço | N108: Serviço | O108: - | P108: AGETOP | Q108: 70541 | R108: CABO DE COBRE NU No. 16 MM2 (6,94 M/KG) | S108: M | T108: 20 | W108: 0
A109: S | B109: 3 | C109: S | D109: 0 | E109: 1 | F109: 6 | G109: 3 | H109: 0 | I109: 0 | J109: 0 | K109: 0 | M109: Serviço | N109: Serviço | O109: - | P109: AGETOP | Q109: 71251 | R109: ELETRODUTO EM AÇO ZINCADO DIÂMETRO 3/4" | S109: M | T109: 300 | W109: 0
A110: S | B110: 3 | C110: S | D110: 0 | E110: 1 | F110: 6 | G110: 3 | H110: 0 | I110: 0 | J110: 0 | K110: 0 | M110: Serviço | N110: Serviço | O110: - | P110: AGETOP | Q110: 71252 | R110: ELETRODUTO EM AÇO ZINCADO DIÂMETRO 1" | S110: M | T110: 63 | W110: 0
A111: S | B111: 3 | C111: S | D111: 0 | E111: 1 | F111: 6 | G111: 3 | H111: 0 | I111: 0 | J111: 0 | K111: 0 | M111: Serviço | N111: Serviço | O111: - | P111: AGETOP | Q111: 71254 | R111: ELETRODUTO EM AÇO ZINCADO DIÂMETRO 1.1/2" | S111: M | T111: 15 | W111: 0
A112: S | B112: 3 | C112: S | D112: 0 | E112: 1 | F112: 6 | G112: 3 | H112: 0 | I112: 0 | J112: 0 | K112: 0 | M112: Serviço | N112: Serviço | O112: - | P112: AGETOP | Q112: 71255 | R112: ELETRODUTO EM AÇO ZINCADO DIÂMETRO 2" | S112: M | T112: 34 | W112: 0
A113: S | B113: 3 | C113: S | D113: 0 | E113: 1 | F113: 6 | G113: 3 | H113: 0 | I113: 0 | J113: 0 | K113: 0 | M113: Serviço | N113: Serviço | O113: - | P113: AGETOP | Q113: 71722 | R113: LUVA EM AÇO ZINCADO DIÂMETRO 3/4" | S113: Un | T113: 85 | W113: 0
A114: S | B114: 3 | C114: S | D114: 0 | E114: 1 | F114: 6 | G114: 3 | H114: 0 | I114: 0 | J114: 0 | K114: 0 | M114: Serviço | N114: Serviço | O114: - | P114: AGETOP | Q114: 71721 | R114: LUVA EM AÇO ZINCADO DIÂMETRO 1" | S114: Un | T114: 15 | W114: 0
A115: S | B115: 3 | C115: S | D115: 0 | E115: 1 | F115: 6 | G115: 3 | H115: 0 | I115: 0 | J115: 0 | K115: 0 | M115: Serviço | N115: Serviço | O115: - | P115: AGETOP | Q115: 71724 | R115: LUVA EM AÇO ZINCADO DIÂMETRO 1.1/2" | S115: Un | T115: 3 | W115: 0
A116: S | B116: 3 | C116: S | D116: 0 | E116: 1 | F116: 6 | G116: 3 | H116: 0 | I116: 0 | J116: 0 | K116: 0 | M116: Serviço | N116: Serviço | O116: - | P116: AGETOP | Q116: 71725 | R116: LUVA EM AÇO ZINCADO DIÂMETRO 2" | S116: Un | T116: 4 | W116: 0
A117: S | B117: 3 | C117: S | D117: 0 | E117: 1 | F117: 6 | G117: 3 | H117: 0 | I117: 0 | J117: 0 | K117: 0 | M117: Serviço | N117: Serviço | O117: - | P117: AGETOP | Q117: 71121 | R117: CURVA 90 GRAUS AÇO ZINCADO DIÂMETRO 3/4" | S117: Un | T117: 45 | W117: 0
A118: S | B118: 3 | C118: S | D118: 0 | E118: 1 | F118: 6 | G118: 3 | H118: 0 | I118: 0 | J118: 0 | K118: 0 | M118: Serviço | N118: Serviço | O118: - | P118: AGETOP | Q118: 71122 | R118: CURVA 90 GRAUS AÇO ZINCADO DIÂMETRO 1" | S118: Un | T118: 7 | W118: 0
A119: S | B119: 3 | C119: S | D119: 0 | E119: 1 | F119: 6 | G119: 3 | H119: 0 | I119: 0 | J119: 0 | K119: 0 | M119: Serviço | N119: Serviço | O119: - | P119: AGETOP | Q119: 71124 | R119: CURVA 90 GRAUS AÇO ZINCADO DIÂMETRO 1.1/2" | S119: Un | T119: 2 | W119: 0
A120: S | B120: 3 | C120: S | D120: 0 | E120: 1 | F120: 6 | G120: 3 | H120: 0 | I120: 0 | J120: 0 | K120: 0 | M120: Serviço | N120: Serviço | O120: - | P120: AGETOP | Q120: 71125 | R120: CURVA 90 GRAUS AÇO ZINCADO DIÂMETRO 2" | S120: Un | T120: 3 | W120: 0
A121: S | B121: 3 | C121: S | D121: 0 | E121: 1 | F121: 6 | G121: 3 | H121: 0 | I121: 0 | J121: 0 | K121: 0 | M121: Serviço | N121: Serviço | O121: - | P121: SINAPI | Q121: 95778 | R121: CONDULETE DE ALUMÍNIO, TIPO C, PARA ELETRODUTO DE AÇO GALVANIZADO DN 20 MM (3/4''), APARENTE - FORNECIMENTO E INSTALAÇÃO. AF_11/2016_P | S121: UN | T121: 24 | W121: 0
A122: S | B122: 3 | C122: S | D122: 0 | E122: 1 | F122: 6 | G122: 3 | H122: 0 | I122: 0 | J122: 0 | K122: 0 | M122: Serviço | N122: Serviço | O122: - | P122: SINAPI | Q122: 95779 | R122: CONDULETE DE ALUMÍNIO, TIPO E, PARA ELETRODUTO DE AÇO GALVANIZADO DN 20 MM (3/4''), APARENTE - FORNECIMENTO E INSTALAÇÃO. AF_11/2016_P | S122: UN | T122: 14 | W122: 0
A123: S | B123: 3 | C123: S | D123: 0 | E123: 1 | F123: 6 | G123: 3 | H123: 0 | I123: 0 | J123: 0 | K123: 0 | M123: Serviço | N123: Serviço | O123: - | P123: SINAPI | Q123: 95787 | R123: CONDULETE DE ALUMÍNIO, TIPO LR, PARA ELETRODUTO DE AÇO GALVANIZADO DN 20 MM (3/4''), APARENTE - FORNECIMENTO E INSTALAÇÃO. AF_11/2016_P | S123: UN | T123: 8 | W123: 0
A124: S | B124: 3 | C124: S | D124: 0 | E124: 1 | F124: 6 | G124: 3 | H124: 0 | I124: 0 | J124: 0 | K124: 0 | M124: Serviço | N124: Serviço | O124: - | P124: SINAPI | Q124: 95795 | R124: CONDULETE DE ALUMÍNIO, TIPO T, PARA ELETRODUTO DE AÇO GALVANIZADO DN 20 MM (3/4''), APARENTE - FORNECIMENTO E INSTALAÇÃO. AF_11/2016_P | S124: UN | T124: 31 | W124: 0
A125: S | B125: 3 | C125: S | D125: 0 | E125: 1 | F125: 6 | G125: 3 | H125: 0 | I125: 0 | J125: 0 | K125: 0 | M125: Serviço | N125: Serviço | O125: - | P125: SINAPI | Q125: 95801 | R125: CONDULETE DE ALUMÍNIO, TIPO X, PARA ELETRODUTO DE AÇO GALVANIZADO DN 20 MM (3/4''), APARENTE - FORNECIMENTO E INSTALAÇÃO. AF_11/2016_P | S125: UN | T125: 5 | W125: 0 | X125: Referência: AGETOP - 70929
A126: S | B126: 3 | C126: S | D126: 0 | E126: 1 | F126: 6 | G126: 3 | H126: 0 | I126: 0 | J126: 0 | K126: 0 | M126: Serviço | N126: Serviço | O126: - | P126: AGETOP | Q126: 70929 | R126: CONDULETE METÁLICO - CAIXA COM 5 ENTRADAS | S126: un | T126: 10 | W126: 0
A127: S | B127: 3 | C127: S | D127: 0 | E127: 1 | F127: 6 | G127: 3 | H127: 0 | I127: 0 | J127: =IF(OR($C127="S",$C127=0),0,MATCH(0,OFFSET($D127,1,$C127,ROW($C$448)-ROW($C127)),0)) -> 0 | K127: =IF(OR($C127="S",$C127=0),0,MATCH(OFFSET($D127,0,$C127)+1,OFFSET($D127,1,$C127,ROW($C$448)-ROW($C127)),0)) -> 0 | M127: Serviço | N127: Serviço | O127: - | P127: AGETOP | Q127: 81161 | R127: BUCHA DE REDUCAO SOLD.CURTA 25 MM X 20 MM | S127: Un | T127: 9 | W127: 0
A128: S | B128: 3 | C128: S | D128: 0 | E128: 1 | F128: 6 | G128: 3 | H128: 0 | I128: 0 | J128: 0 | K128: 0 | M128: Serviço | N128: Serviço | O128: - | P128: AGETOP | Q128: 81176 | R128: BUCHA DE REDUCAO SOLD.LONGA 40 X 20 mm | S128: Un | T128: 7 | W128: 0
A129: S | B129: 3 | C129: S | D129: 0 | E129: 1 | F129: 6 | G129: 3 | H129: 0 | I129: 0 | J129: 0 | K129: 0 | M129: Serviço | N129: Serviço | O129: - | P129: AGETOP | Q129: 81177 | R129: BUCHA DE REDUCAO SOLD.LONGA 40 X 25 | S129: Un | T129: 1 | W129: 0
A130: S | B130: 3 | C130: S | D130: 0 | E130: 1 | F130: 6 | G130: 3 | H130: 0 | I130: 0 | J130: 0 | K130: 0 | M130: Serviço | N130: Serviço | O130: - | P130: SINAPI | Q130: 97599 | R130: LUMINÁRIA DE EMERGÊNCIA - FORNECIMENTO E INSTALAÇÃO. AF_11/2017 | S130: UN | T130: 14 | W130: 0
A131: S | B131: 3 | C131: S | D131: 0 | E131: 1 | F131: 6 | G131: 3 | H131: 0 | I131: 0 | J131: 0 | K131: 0 | M131: Serviço | N131: Serviço | O131: - | P131: SINAPI | Q131: 73953/4 | R131: LUMINÁRIAS TIPO CALHA, DE SOBREPOR, COM REATORES DE PARTIDA RÁPIDA E LÂMPADAS FLUORESCENTES 2X2X18W, COMPLETAS, FORNECIMENTO E INSTALAÇÃO | S131: UN | T131: 42 | W131: 0
A132: S | B132: 3 | C132: S | D132: 0 | E132: 1 | F132: 6 | G132: 3 | H132: 0 | I132: 0 | J132: 0 | K132: 0 | M132: Serviço | N132: Serviço | O132: - | P132: AGETOP | Q132: 70561 | R132: CABO ISOLADO PP 3 X 2,5 MM2 | S132: M | T132: 42 | W132: 0
A133: S | B133: 3 | C133: S | D133: 0 | E133: 1 | F133: 6 | G133: 3 | H133: 0 | I133: 0 | J133: 0 | K133: 0 | M133: Serviço | N133: Serviço | O133: - | P133: AGETOP | Q133: 71411 | R133: INTERRUPTOR 1 SEÇÃO (LINHA X OU EQUIVALENTE) | S133: Un | T133: 5 | W133: 0
A134: S | B134: 3 | C134: S | D134: 0 | E134: 1 | F134: 6 | G134: 3 | H134: 0 | I134: 0 | J134: 0 | K134: 0 | M134: Serviço | N134: Serviço | O134: - | P134: AGETOP | Q134: 71412 | R134: INTERRUPTOR 2 SEÇÕES (LINHA X OU EQUIVALENTE) | S134: Un | T134: 3 | W134: 0
A135: S | B135: 3 | C135: S | D135: 0 | E135: 1 | F135: 6 | G135: 3 | H135: 0 | I135: 0 | J135: 0 | K135: 0 | M135: Serviço | N135: Serviço | O135: - | P135: SINAPI | Q135: 92868 | R135: CAIXA RETANGULAR 4" X 2" MÉDIA (1,30 M DO PISO), METÁLICA, INSTALADA EM PAREDE - FORNECIMENTO E INSTALAÇÃO. AF_12/2015 | S135: UN | T135: 11 | W135: 0 | X135: Referência: AGETOP - 70691
A136: S | B136: 3 | C136: S | D136: 0 | E136: 1 | F136: 6 | G136: 3 | H136: 0 | I136: 0 | J136: 0 | K136: 0 | M136: Serviço | N136: Serviço | O136: - | P136: SINAPI | Q136: 97893 | R136: CAIXA ENTERRADA ELÉTRICA RETANGULAR, EM ALVENARIA COM BLOCOS DE CONCRETO, FUNDO COM BRITA, DIMENSÕES INTERNAS: 0,8X0,8X0,6 M. AF_05/2018 | S136: UN | T136: 2 | W136: 0
A137: S | B137: 3 | C137: S | D137: 0 | E137: 1 | F137: 6 | G137: 3 | H137: 0 | I137: 0 | J137: 0 | K137: 0 | M137: Serviço | N137: Serviço | O137: - | P137: SINAPI | Q137: 92008 | R137: TOMADA BAIXA DE EMBUTIR (2 MÓDULOS), 2P+T 10 A, INCLUINDO SUPORTE E PLACA - FORNECIMENTO E INSTALAÇÃO. AF_12/2015 | S137: UN | T137: 8 | W137: 0
A138: S | B138: 3 | C138: S | D138: 0 | E138: 1 | F138: 6 | G138: 3 | H138: 0 | I138: 0 | J138: 0 | K138: 0 | M138: Serviço | N138: Serviço | O138: - | P138: SINAPI | Q138: 92004 | R138: TOMADA MÉDIA DE EMBUTIR (2 MÓDULOS), 2P+T 10 A, INCLUINDO SUPORTE E PLACA - FORNECIMENTO E INSTALAÇÃO. AF_12/2015 | S138: UN | T138: 2 | W138: 0 | X138: Referência: AGETOP - 72578
A139: S | B139: 3 | C139: S | D139: 0 | E139: 1 | F139: 6 | G139: 3 | H139: 0 | I139: 0 | J139: 0 | K139: 0 | M139: Serviço | N139: Serviço | O139: - | P139: SINAPI | Q139: 92000 | R139: TOMADA BAIXA DE EMBUTIR (1 MÓDULO), 2P+T 10 A, INCLUINDO SUPORTE E PLACA - FORNECIMENTO E INSTALAÇÃO. AF_12/2015 | S139: UN | T139: 8 | W139: 0 | X139: Referência: AGETOP - 72578
A140: S | B140: 3 | C140: S | D140: 0 | E140: 1 | F140: 6 | G140: 3 | H140: 0 | I140: 0 | J140: 0 | K140: 0 | M140: Serviço | N140: Serviço | O140: - | P140: AGETOP | Q140: 71043 | R140: CONECTOR TRIPOLAR EM PORCELANA PARA FIOS DE ATÉ 10MM2 (BORNES) 50A-250V (CHUVEIRO) | S140: un | T140: 5 | W140: 0
A141: S | B141: 3 | C141: S | D141: 0 | E141: 1 | F141: 6 | G141: 3 | H141: 0 | I141: 0 | J141: 0 | K141: 0 | M141: Serviço | N141: Serviço | O141: - | P141: AGETOP | Q141: 72575 | R141: TOMADA HEXAGONAL 2P + T - 20A - 250V (LINHA X OU EQUIVALENTE) | S141: Un | T141: 5 | W141: 0
A142: S | B142: 3 | C142: S | D142: 0 | E142: 1 | F142: 6 | G142: 3 | H142: 0 | I142: 0 | J142: 0 | K142: 0 | M142: Serviço | N142: Serviço | O142: - | P142: SINAPI | Q142: 91926 | R142: CABO DE COBRE FLEXÍVEL ISOLADO, 2,5 MM², ANTI-CHAMA 450/750 V, PARA CIRCUITOS TERMINAIS - FORNECIMENTO E INSTALAÇÃO. AF_12/2015 | S142: M | T142: 1510 | W142: 0 | X142: Referência: AGETOP - 70563
A143: S | B143: 3 | C143: S | D143: 0 | E143: 1 | F143: 6 | G143: 3 | H143: 0 | I143: 0 | J143: 0 | K143: 0 | M143: Serviço | N143: Serviço | O143: - | P143: SINAPI | Q143: 91928 | R143: CABO DE COBRE FLEXÍVEL ISOLADO, 4 MM², ANTI-CHAMA 450/750 V, PARA CIRCUITOS TERMINAIS - FORNECIMENTO E INSTALAÇÃO. AF_12/2015 | S143: M | T143: 180 | W143: 0 | X143: Referência: AGETOP - 70564
A144: S | B144: 3 | C144: S | D144: 0 | E144: 1 | F144: 6 | G144: 3 | H144: 0 | I144: 0 | J144: 0 | K144: 0 | M144: Serviço | N144: Serviço | O144: - | P144: SINAPI | Q144: 91931 | R144: CABO DE COBRE FLEXÍVEL ISOLADO, 6 MM², ANTI-CHAMA 0,6/1,0 KV, PARA CIRCUITOS TERMINAIS - FORNECIMENTO E INSTALAÇÃO. AF_12/2015 | S144: M | T144: 280 | W144: 0 | X144: Referência: AGETOP - 70583
A145: S | B145: 3 | C145: S | D145: 0 | E145: 1 | F145: 6 | G145: 3 | H145: 0 | I145: 0 | J145: 0 | K145: 0 | M145: Serviço | N145: Serviço | O145: - | P145: SINAPI | Q145: 92984 | R145: CABO DE COBRE FLEXÍVEL ISOLADO, 25 MM², ANTI-CHAMA 0,6/1,0 KV, PARA DISTRIBUIÇÃO - FORNECIMENTO E INSTALAÇÃO. AF_12/2015 | S145: M | T145: 140 | W145: 0 | X145: Referência: AGETOP - 70511
A146: S | B146: 3 | C146: S | D146: 0 | E146: 1 | F146: 6 | G146: 3 | H146: 0 | I146: 0 | J146: 0 | K146: 0 | M146: Serviço | N146: Serviço | O146: - | P146: SINAPI | Q146: 92986 | R146: CABO DE COBRE FLEXÍVEL ISOLADO, 35 MM², ANTI-CHAMA 0,6/1,0 KV, PARA DISTRIBUIÇÃO - FORNECIMENTO E INSTALAÇÃO. AF_12/2015 | S146: M | T146: 60 | W146: 0 | X146: Referência: AGETOP - 70512
A147: S | B147: 3 | C147: S | D147: 0 | E147: 1 | F147: 6 | G147: 3 | H147: 0 | I147: 0 | J147: 0 | K147: 0 | M147: Serviço | N147: Serviço | O147: - | P147: SINAPI | Q147: 74131/5 | R147: QUADRO DE DISTRIBUICAO DE ENERGIA DE EMBUTIR, EM CHAPA METALICA, PARA 24 DISJUNTORES TERMOMAGNETICOS MONOPOLARES, COM BARRAMENTO TRIFASICO E NEUTRO, FORNECIMENTO E INSTALACAO | S147: UN | T147: 1 | W147: 0
A148: S | B148: 3 | C148: S | D148: 0 | E148: 1 | F148: 6 | G148: 3 | H148: 0 | I148: 0 | J148: 0 | K148: 0 | M148: Serviço | N148: Serviço | O148: - | P148: AGETOP | Q148: 71450 | R148: INTERRUPTOR DIFERENCIAL RESIDUAL (D.R.) BIPOLAR DE 25A-30mA | S148: Un | T148: 2 | W148: 0
A149: S | B149: 3 | C149: S | D149: 0 | E149: 1 | F149: 6 | G149: 3 | H149: 0 | I149: 0 | J149: 0 | K149: 0 | M149: Serviço | N149: Serviço | O149: - | P149: SINAPI | Q149: 93654 | R149: DISJUNTOR MONOPOLAR TIPO DIN, CORRENTE NOMINAL DE 16A - FORNECIMENTO E INSTALAÇÃO. AF_04/2016 | S149: UN | T149: 7 | W149: 0
A150: S | B150: 3 | C150: S | D150: 0 | E150: 1 | F150: 6 | G150: 3 | H150: 0 | I150: 0 | J150: 0 | K150: 0 | M150: Serviço | N150: Serviço | O150: - | P150: SINAPI | Q150: 93656 | R150: DISJUNTOR MONOPOLAR TIPO DIN, CORRENTE NOMINAL DE 25A - FORNECIMENTO E INSTALAÇÃO. AF_04/2016 | S150: UN | T150: 3 | W150: 0
A151: S | B151: 3 | C151: S | D151: 0 | E151: 1 | F151: 6 | G151: 3 | H151: 0 | I151: 0 | J151: 0 | K151: 0 | M151: Serviço | N151: Serviço | O151: - | P151: SINAPI | Q151: 93672 | R151: DISJUNTOR TRIPOLAR TIPO DIN, CORRENTE NOMINAL DE 40A - FORNECIMENTO E INSTALAÇÃO. AF_04/2016 | S151: UN | T151: 2 | W151: 0 | X151: Referência: AGETOP - 71174
A152: =CHOOSE(1+LOG(1+2*(ORÇAMENTO.Nivel="Nível 1")+4*(ORÇAMENTO.Nivel="Nível 2")+8*(ORÇAMENTO.Nivel="Nível 3")+16*(ORÇAMENTO.Nivel="Nível 4")+32*(ORÇAMENTO.Nivel="Serviço"),2),0,1,2,3,4,"S") -> S | B152: =IF(OR(C152="s",C152=0),OFFSET(B152,-1,0),C152) -> 3 | C152: =IF(OFFSET(C152,-1,0)="L",1,IF(OFFSET(C152,-1,0)=1,2,IF(OR(A152="s",A152=0),"S",IF(AND(OFFSET(C152,-1,0)=2,A152=4),3,IF(AND(OR(OFFSET(C152,-1,0)="s",OFFSET(C152,-1,0)=0),A152<>"s",A152>OFFSET(B152,-1,0)),OFFSET(B152,-1,0),A152))))) -> S | D152: =IF(OR(C152="S",C152=0),0,IF(ISERROR(K152),J152,SMALL(J152:K152,1))) -> 0 | E152: =IF($C152=1,OFFSET(E152,-1,0)+1,OFFSET(E152,-1,0)) -> 1 | F152: =IF($C152=1,0,IF($C152=2,OFFSET(F152,-1,0)+1,OFFSET(F152,-1,0))) -> 6 | G152: =IF(AND($C152<=2,$C152<>0),0,IF($C152=3,OFFSET(G152,-1,0)+1,OFFSET(G152,-1,0))) -> 3 | H152: =IF(AND($C152<=3,$C152<>0),0,IF($C152=4,OFFSET(H152,-1,0)+1,OFFSET(H152,-1,0))) -> 0 | I152: =IF(AND($C152<=4,$C152<>0),0,IF(AND($C152="S",$W152>0),OFFSET(I152,-1,0)+1,OFFSET(I152,-1,0))) -> 0 | J152: 0 | K152: 0 | M152: Serviço | N152: Serviço | O152: - | P152: AGETOP | Q152: 70764 | R152: CANALETA COM TAMPA (LINHA X OU EQUIVALENTE) 50X20X2000 MM | S152: M | T152: 2 | W152: 0
A153: S | B153: 3 | C153: S | D153: 0 | E153: 1 | F153: 6 | G153: 3 | H153: 0 | I153: 0 | J153: 0 | K153: 0 | M153: Serviço | N153: Serviço | O153: - | P153: SINAPI | Q153: 74131/4 | R153: QUADRO DE DISTRIBUICAO DE ENERGIA DE EMBUTIR, EM CHAPA METALICA, PARA 18 DISJUNTORES TERMOMAGNETICOS MONOPOLARES, COM BARRAMENTO TRIFASICO E NEUTRO, FORNECIMENTO E INSTALACAO | S153: UN | T153: 1 | W153: 0
A154: S | B154: 3 | C154: S | D154: 0 | E154: 1 | F154: 6 | G154: 3 | H154: 0 | I154: 0 | J154: 0 | K154: 0 | M154: Serviço | N154: Serviço | O154: - | P154: SINAPI | Q154: 93655 | R154: DISJUNTOR MONOPOLAR TIPO DIN, CORRENTE NOMINAL DE 20A - FORNECIMENTO E INSTALAÇÃO. AF_04/2016 | S154: UN | T154: 3 | W154: 0
A155: S | B155: 3 | C155: S | D155: 0 | E155: 1 | F155: 6 | G155: 3 | H155: 0 | I155: 0 | J155: 0 | K155: 0 | M155: Serviço | N155: Serviço | O155: - | P155: AGETOP | Q155: 71184 | R155: DISPOSITIVO DE PROTEÇÃO CONTRA SURTOS (D.P.S.) 275V DE 8 A 40KA | S155: Un | T155: 3 | W155: 0
A156: S | B156: 3 | C156: S | D156: 0 | E156: 1 | F156: 6 | G156: 3 | H156: 0 | I156: 0 | J156: 0 | K156: 0 | M156: Serviço | N156: Serviço | O156: - | P156: AGETOP | Q156: 71175 | R156: DISJUNTOR TRIPOLAR DE 60 A 100-A | S156: Un | T156: 2 | W156: 0
A157: S | B157: 3 | C157: S | D157: 0 | E157: 1 | F157: 6 | G157: 3 | H157: 0 | I157: 0 | J157: 0 | K157: 0 | M157: Serviço | N157: Serviço | O157: - | P157: AGETOP | Q157: 72630 | R157: TRILHO OU SUPORTE P/BORNE TERMINAL | S157: M | T157: 1 | W157: 0
A158: =CHOOSE(1+LOG(1+2*(ORÇAMENTO.Nivel="Nível 1")+4*(ORÇAMENTO.Nivel="Nível 2")+8*(ORÇAMENTO.Nivel="Nível 3")+16*(ORÇAMENTO.Nivel="Nível 4")+32*(ORÇAMENTO.Nivel="Serviço"),2),0,1,2,3,4,"S") -> 2 | B158: =IF(OR(C158="s",C158=0),OFFSET(B158,-1,0),C158) -> 2 | C158: =IF(OFFSET(C158,-1,0)="L",1,IF(OFFSET(C158,-1,0)=1,2,IF(OR(A158="s",A158=0),"S",IF(AND(OFFSET(C158,-1,0)=2,A158=4),3,IF(AND(OR(OFFSET(C158,-1,0)="s",OFFSET(C158,-1,0)=0),A158<>"s",A158>OFFSET(B158,-1,0)),OFFSET(B158,-1,0),A158))))) -> 2 | D158: =IF(OR(C158="S",C158=0),0,IF(ISERROR(K158),J158,SMALL(J158:K158,1))) -> 81 | E158: =IF($C158=1,OFFSET(E158,-1,0)+1,OFFSET(E158,-1,0)) -> 1 | F158: =IF($C158=1,0,IF($C158=2,OFFSET(F158,-1,0)+1,OFFSET(F158,-1,0))) -> 7 | G158: =IF(AND($C158<=2,$C158<>0),0,IF($C158=3,OFFSET(G158,-1,0)+1,OFFSET(G158,-1,0))) -> 0 | H158: =IF(AND($C158<=3,$C158<>0),0,IF($C158=4,OFFSET(H158,-1,0)+1,OFFSET(H158,-1,0))) -> 0 | I158: =IF(AND($C158<=4,$C158<>0),0,IF(AND($C158="S",$W158>0),OFFSET(I158,-1,0)+1,OFFSET(I158,-1,0))) -> 0 | J158: 290 | K158: 81 | M158: Nível 2 | N158: Nível 2 | O158: - | P158: AGETOP | R158: INSTALAÇÕES HIDROSSANITÁRIAS | S158: - | W158: 0
A159: 3 | B159: 3 | C159: 3 | D159: 23 | E159: 1 | F159: 7 | G159: 1 | H159: 0 | I159: 0 | J159: 80 | K159: 23 | M159: Nível 3 | N159: Nível 3 | O159: - | P159: SINAPI | R159: PEÇAS E ACESSÓRIOS | S159: - | W159: 0
A160: 4 | B160: 4 | C160: 4 | D160: 6 | E160: 1 | F160: 7 | G160: 1 | H160: 1 | I160: 0 | J160: 22 | K160: 6 | M160: Nível 4 | N160: Nível 4 | O160: - | P160: SINAPI | R160: VASO SANITÁRIO E ACESSÓRIOS | S160: - | W160: 0
A161: S | B161: 4 | C161: S | D161: 0 | E161: 1 | F161: 7 | G161: 1 | H161: 1 | I161: 0 | J161: 0 | K161: 0 | M161: Serviço | N161: Serviço | O161: - | P161: SINAPI | Q161: 95470 | R161: VASO SANITARIO SIFONADO CONVENCIONAL COM LOUÇA BRANCA, INCLUSO CONJUNTO DE LIGAÇÃO PARA BACIA SANITÁRIA AJUSTÁVEL - FORNECIMENTO E INSTALAÇÃO. AF_10/2016 | S161: UN | T161: 7 | W161: 0
A162: S | B162: 4 | C162: S | D162: 0 | E162: 1 | F162: 7 | G162: 1 | H162: 1 | I162: 0 | J162: 0 | K162: 0 | M162: Serviço | N162: Serviço | O162: - | P162: SINAPI | Q162: 99635 | R162: VÁLVULA DE DESCARGA METÁLICA, BASE 1 1/2 ", ACABAMENTO METALICO CROMADO - FORNECIMENTO E INSTALAÇÃO. AF_01/2019 | S162: UN | T162: 7 | W162: 0 | X162: Referência: AGETOP - 80515
A163: S | B163: 4 | C163: S | D163: 0 | E163: 1 | F163: 7 | G163: 1 | H163: 1 | I163: 0 | J163: 0 | K163: 0 | M163: Serviço | N163: Serviço | O163: - | P163: AGETOP | Q163: 80520 | R163: CONJUNTO DE FIXACAO P/VASO SANITARIO (PAR) | S163: CJ | T163: 7 | W163: 0
A164: S | B164: 4 | C164: S | D164: 0 | E164: 1 | F164: 7 | G164: 1 | H164: 1 | I164: 0 | J164: =IF(OR($C164="S",$C164=0),0,MATCH(0,OFFSET($D164,1,$C164,ROW($C$448)-ROW($C164)),0)) -> 0 | K164: =IF(OR($C164="S",$C164=0),0,MATCH(OFFSET($D164,0,$C164)+1,OFFSET($D164,1,$C164,ROW($C$448)-ROW($C164)),0)) -> 0 | M164: Serviço | N164: Serviço | O164: - | P164: AGETOP | Q164: 80526 | R164: ASSENTO EM POLIPROPILENO COM SISTEMA DE FECHAMENTO SUAVE PARA VASO SANITÁRIO | S164: Un | T164: 7 | W164: 0
A165: S | B165: 4 | C165: S | D165: 0 | E165: 1 | F165: 7 | G165: 1 | H165: 1 | I165: 0 | J165: 0 | K165: 0 | M165: Serviço | N165: Serviço | O165: - | P165: SINAPI | Q165: 95544 | R165: PAPELEIRA DE PAREDE EM METAL CROMADO SEM TAMPA, INCLUSO FIXAÇÃO. AF_10/2016 | S165: UN | T165: 7 | W165: 0
A166: 4 | B166: 4 | C166: 4 | D166: 8 | E166: 1 | F166: 7 | G166: 1 | H166: 2 | I166: 0 | J166: 16 | K166: 8 | M166: Nível 4 | N166: Nível 4 | O166: - | P166: SINAPI | R166: LAVATÓRIO E ACESSÓRIOS | S166: - | W166: 0
A167: S | B167: 4 | C167: S | D167: 0 | E167: 1 | F167: 7 | G167: 1 | H167: 2 | I167: 0 | J167: 0 | K167: 0 | M167: Serviço | N167: Serviço | O167: - | P167: AGETOP | Q167: 80542 | R167: LAVATÓRIO MÉDIO SEM COLUNA | S167: Un | T167: 1 | W167: 0
A168: S | B168: 4 | C168: S | D168: 0 | E168: 1 | F168: 7 | G168: 1 | H168: 2 | I168: 0 | J168: 0 | K168: 0 | M168: Serviço | N168: Serviço | O168: - | P168: AGETOP | Q168: 80550 | R168: FIXACAO P/LAVATORIO (PAR) | S168: PAR | T168: 1 | W168: 0
A169: S | B169: 4 | C169: S | D169: 0 | E169: 1 | F169: 7 | G169: 1 | H169: 2 | I169: 0 | J169: 0 | K169: 0 | M169: Serviço | N169: Serviço | O169: - | P169: AGETOP | Q169: 80556 | R169: LIGAÇÃO FLEXÍVEL PVC DIAM.1/2" (ENGATE) | S169: Un | T169: 6 | W169: 0
A170: S | B170: 4 | C170: S | D170: 0 | E170: 1 | F170: 7 | G170: 1 | H170: 2 | I170: 0 | J170: 0 | K170: 0 | M170: Serviço | N170: Serviço | O170: - | P170: SINAPI | Q170: 86883 | R170: SIFÃO DO TIPO FLEXÍVEL EM PVC 1 X 1.1/2 - FORNECIMENTO E INSTALAÇÃO. AF_12/2013 | S170: UN | T170: 6 | W170: 0
A171: S | B171: 4 | C171: S | D171: 0 | E171: 1 | F171: 7 | G171: 1 | H171: 2 | I171: 0 | J171: 0 | K171: 0 | M171: Serviço | N171: Serviço | O171: - | P171: SINAPI | Q171: 86915 | R171: TORNEIRA CROMADA DE MESA, 1/2" OU 3/4", PARA LAVATÓRIO, PADRÃO MÉDIO - FORNECIMENTO E INSTALAÇÃO. AF_12/2013 | S171: UN | T171: 6 | W171: 0 | X171: Referência: AGETOP - 80570
A172: S | B172: 4 | C172: S | D172: 0 | E172: 1 | F172: 7 | G172: 1 | H172: 2 | I172: 0 | J172: 0 | K172: 0 | M172: Serviço | N172: Serviço | O172: - | P172: SINAPI | Q172: 86877 | R172: VÁLVULA EM METAL CROMADO 1.1/2" X 1.1/2" PARA TANQUE OU LAVATÓRIO, COM OU SEM LADRÃO - FORNECIMENTO E INSTALAÇÃO. AF_12/2013 | S172: UN | T172: 6 | W172: 0
A173: S | B173: 4 | C173: S | D173: 0 | E173: 1 | F173: 7 | G173: 1 | H173: 2 | I173: 0 | J173: 0 | K173: 0 | M173: Serviço | N173: Serviço | O173: - | P173: SINAPI | Q173: 86901 | R173: CUBA DE EMBUTIR OVAL EM LOUÇA BRANCA, 35 X 50CM OU EQUIVALENTE - FORNECIMENTO E INSTALAÇÃO. AF_12/2013 | S173: UN | T173: 5 | W173: 0 | X173: Referência: AGETOP - 80587
A174: 4 | B174: 4 | C174: 4 | D174: 5 | E174: 1 | F174: 7 | G174: 1 | H174: 3 | I174: 0 | J174: 8 | K174: 5 | M174: Nível 4 | N174: Nível 4 | O174: - | P174: SINAPI | R174: PIA E ACESSÓRIOS | S174: - | W174: 0
A175: S | B175: 4 | C175: S | D175: 0 | E175: 1 | F175: 7 | G175: 1 | H175: 3 | I175: 0 | J175: 0 | K175: 0 | M175: Serviço | N175: Serviço | O175: - | P175: SINAPI | Q175: 86909 | R175: TORNEIRA CROMADA TUBO MÓVEL, DE MESA, 1/2" OU 3/4", PARA PIA DE COZINHA, PADRÃO ALTO - FORNECIMENTO E INSTALAÇÃO. AF_12/2013 | S175: UN | T175: 5 | W175: 0
A176: S | B176: 4 | C176: S | D176: 0 | E176: 1 | F176: 7 | G176: 1 | H176: 3 | I176: 0 | J176: 0 | K176: 0 | M176: Serviço | N176: Serviço | O176: - | P176: AGETOP | Q176: 80671 | R176: SIFAO PVC P/PIA 1.1/2" X 2" | S176: Un | T176: 5 | W176: 0
A177: S | B177: 4 | C177: S | D177: 0 | E177: 1 | F177: 7 | G177: 1 | H177: 3 | I177: 0 | J177: 0 | K177: 0 | M177: Serviço | N177: Serviço | O177: - | P177: SINAPI | Q177: 86878 | R177: VÁLVULA EM METAL CROMADO TIPO AMERICANA 3.1/2" X 1.1/2" PARA PIA - FORNECIMENTO E INSTALAÇÃO. AF_12/2013 | S177: UN | T177: 5 | W177: 0
A178: S | B178: 4 | C178: S | D178: 0 | E178: 1 | F178: 7 | G178: 1 | H178: 3 | I178: 0 | J178: 0 | K178: 0 | M178: Serviço | N178: Serviço | O178: - | P178: AGETOP | Q178: 80689 | R178: CUBA INOX 50X40X20CM E=0,7MM-AÇO 304 | S178: Un | T178: 5 | W178: 0
A179: 4 | B179: 4 | C179: 4 | D179: 3 | E179: 1 | F179: 7 | G179: 1 | H179: 4 | I179: 0 | J179: 3 | K179: 16 | M179: Nível 4 | N179: Nível 4 | O179: - | P179: SINAPI | R179: REGISTROS | S179: - | W179: 0
A180: S | B180: 4 | C180: S | D180: 0 | E180: 1 | F180: 7 | G180: 1 | H180: 4 | I180: 0 | J180: 0 | K180: 0 | M180: Serviço | N180: Serviço | O180: - | P180: AGETOP | Q180: 80905 | R180: REGISTRO DE GAVETA BRUTO DIAMETRO 1.1/2" | S180: Un | T180: 2 | W180: 0
A181: S | B181: 4 | C181: S | D181: 0 | E181: 1 | F181: 7 | G181: 1 | H181: 4 | I181: 0 | J181: 0 | K181: 0 | M181: Serviço | N181: Serviço | O181: - | P181: SINAPI | Q181: 89987 | R181: REGISTRO DE GAVETA BRUTO, LATÃO, ROSCÁVEL, 3/4", COM ACABAMENTO E CANOPLA CROMADOS. FORNECIDO E INSTALADO EM RAMAL DE ÁGUA. AF_12/2014 | S181: UN | T181: 5 | W181: 0 | X181: Referência: AGETOP - 80926
A182: 3 | B182: 3 | C182: 3 | D182: 21 | E182: 1 | F182: 7 | G182: 2 | H182: 0 | I182: 0 | J182: 57 | K182: 21 | M182: Nível 3 | N182: Nível 3 | O182: - | P182: SINAPI | R182: ÁGUA FRIA | S182: - | W182: 0
A183: 4 | B183: 4 | C183: 4 | D183: 4 | E183: 1 | F183: 7 | G183: 2 | H183: 1 | I183: 0 | J183: 20 | K183: 4 | M183: Nível 4 | N183: Nível 4 | O183: - | P183: SINAPI | R183: TUBOS DE PVC SOLDÁVEL | S183: - | W183: 0
A184: S | B184: 4 | C184: S | D184: 0 | E184: 1 | F184: 7 | G184: 2 | H184: 1 | I184: 0 | J184: 0 | K184: 0 | M184: Serviço | N184: Serviço | O184: - | P184: SINAPI | Q184: 89402 | R184: TUBO, PVC, SOLDÁVEL, DN 25MM, INSTALADO EM RAMAL DE DISTRIBUIÇÃO DE ÁGUA - FORNECIMENTO E INSTALAÇÃO. AF_12/2014 | S184: M | T184: 25 | W184: 0 | X184: Referência: AGETOP - 81003
A185: S | B185: 4 | C185: S | D185: 0 | E185: 1 | F185: 7 | G185: 2 | H185: 1 | I185: 0 | J185: 0 | K185: 0 | M185: Serviço | N185: Serviço | O185: - | P185: SINAPI | Q185: 89448 | R185: TUBO, PVC, SOLDÁVEL, DN 40MM, INSTALADO EM PRUMADA DE ÁGUA - FORNECIMENTO E INSTALAÇÃO. AF_12/2014 | S185: M | T185: 45 | W185: 0
A186: S | B186: 4 | C186: S | D186: 0 | E186: 1 | F186: 7 | G186: 2 | H186: 1 | I186: 0 | J186: 0 | K186: 0 | M186: Serviço | N186: Serviço | O186: - | P186: SINAPI | Q186: 89449 | R186: TUBO, PVC, SOLDÁVEL, DN 50MM, INSTALADO EM PRUMADA DE ÁGUA - FORNECIMENTO E INSTALAÇÃO. AF_12/2014 | S186: M | T186: 6 | W186: 0
A187: 4 | B187: 4 | C187: 4 | D187: 3 | E187: 1 | F187: 7 | G187: 2 | H187: 2 | I187: 0 | J187: 16 | K187: 3 | M187: Nível 4 | N187: Nível 4 | O187: - | P187: SINAPI | R187: ADAPTADORES DE PVC SOLDÁVEL | S187: - | W187: 0
A188: S | B188: 4 | C188: S | D188: 0 | E188: 1 | F188: 7 | G188: 2 | H188: 2 | I188: 0 | J188: 0 | K188: 0 | M188: Serviço | N188: Serviço | O188: - | P188: SINAPI | Q188: 89538 | R188: ADAPTADOR CURTO COM BOLSA E ROSCA PARA REGISTRO, PVC, SOLDÁVEL, DN 25MM X 3/4, INSTALADO EM PRUMADA DE ÁGUA - FORNECIMENTO E INSTALAÇÃO. AF_12/2014 | S188: UN | T188: 10 | W188: 0
A189: S | B189: 4 | C189: S | D189: 0 | E189: 1 | F189: 7 | G189: 2 | H189: 2 | I189: 0 | J189: 0 | K189: 0 | M189: Serviço | N189: Serviço | O189: - | P189: SINAPI | Q189: 89596 | R189: ADAPTADOR CURTO COM BOLSA E ROSCA PARA REGISTRO, PVC, SOLDÁVEL, DN 50MM X 1.1/2, INSTALADO EM PRUMADA DE ÁGUA - FORNECIMENTO E INSTALAÇÃO. AF_12/2014 | S189: UN | T189: 6 | W189: 0 | X189: Referência: AGETOP - 81069
A190: 4 | B190: 4 | C190: 4 | D190: 2 | E190: 1 | F190: 7 | G190: 2 | H190: 3 | I190: 0 | J190: 13 | K190: 2 | M190: Nível 4 | N190: Nível 4 | O190: - | P190: SINAPI | R190: LUVAS DE PVC | S190: - | W190: 0
A191: S | B191: 4 | C191: S | D191: 0 | E191: 1 | F191: 7 | G191: 2 | H191: 3 | I191: 0 | J191: 0 | K191: 0 | M191: Serviço | N191: Serviço | O191: - | P191: SINAPI | Q191: 89575 | R191: LUVA, PVC, SOLDÁVEL, DN 50MM, INSTALADO EM PRUMADA DE ÁGUA - FORNECIMENTO E INSTALAÇÃO. AF_12/2014 | S191: UN | T191: 2 | W191: 0 | X191: Referência: AGETOP - 81105
A192: 4 | B192: 4 | C192: 4 | D192: 3 | E192: 1 | F192: 7 | G192: 2 | H192: 4 | I192: 0 | J192: 11 | K192: 3 | M192: Nível 4 | N192: Nível 4 | O192: - | P192: SINAPI | R192: BUCHAS | S192: - | W192: 0
A193: S | B193: 4 | C193: S | D193: 0 | E193: 1 | F193: 7 | G193: 2 | H193: 4 | I193: 0 | J193: 0 | K193: 0 | M193: Serviço | N193: Serviço | O193: - | P193: AGETOP | Q193: 81177 | R193: BUCHA DE REDUCAO SOLD.LONGA 40 X 25 | S193: Un | T193: 2 | W193: 0
A194: S | B194: 4 | C194: S | D194: 0 | E194: 1 | F194: 7 | G194: 2 | H194: 4 | I194: 0 | J194: 0 | K194: 0 | M194: Serviço | N194: Serviço | O194: - | P194: AGETOP | Q194: 81179 | R194: BUCHA DE REDUCAO SOLDAVEL LONGA 50 X 25 mm | S194: Un | T194: 2 | W194: 0
A195: 4 | B195: 4 | C195: 4 | D195: 4 | E195: 1 | F195: 7 | G195: 2 | H195: 5 | I195: 0 | J195: 8 | K195: 4 | M195: Nível 4 | N195: Nível 4 | O195: - | P195: SINAPI | R195: JOELHO | S195: - | W195: 0
A196: S | B196: 4 | C196: S | D196: 0 | E196: 1 | F196: 7 | G196: 2 | H196: 5 | I196: 0 | J196: 0 | K196: 0 | M196: Serviço | N196: Serviço | O196: - | P196: SINAPI | Q196: 89481 | R196: JOELHO 90 GRAUS, PVC, SOLDÁVEL, DN 25MM, INSTALADO EM PRUMADA DE ÁGUA - FORNECIMENTO E INSTALAÇÃO. AF_12/2014 | S196: UN | T196: 10 | W196: 0
A197: S | B197: 4 | C197: S | D197: 0 | E197: 1 | F197: 7 | G197: 2 | H197: 5 | I197: 0 | J197: 0 | K197: 0 | M197: Serviço | N197: Serviço | O197: - | P197: SINAPI | Q197: 89497 | R197: JOELHO 90 GRAUS, PVC, SOLDÁVEL, DN 40MM, INSTALADO EM PRUMADA DE ÁGUA - FORNECIMENTO E INSTALAÇÃO. AF_12/2014 | S197: UN | T197: 5 | W197: 0
A198: S | B198: 4 | C198: S | D198: 0 | E198: 1 | F198: 7 | G198: 2 | H198: 5 | I198: 0 | J198: 0 | K198: 0 | M198: Serviço | N198: Serviço | O198: - | P198: SINAPI | Q198: 94672 | R198: JOELHO 90 GRAUS COM BUCHA DE LATÃO, PVC, SOLDÁVEL, DN 25 MM, X 3/4 INSTALADO EM RESERVAÇÃO DE ÁGUA DE EDIFICAÇÃO QUE POSSUA RESERVATÓRIO DE FIBRA/FIBROCIMENTO FORNECIMENTO E INSTALAÇÃO. AF_06/2016 | S198: UN | T198: 7 | W198: 0
A199: 4 | B199: 4 | C199: 4 | D199: 4 | E199: 1 | F199: 7 | G199: 2 | H199: 6 | I199: 0 | J199: 4 | K199: 30 | M199: Nível 4 | N199: Nível 4 | O199: - | P199: SINAPI | R199: TÊ | S199: - | W199: 0
A200: S | B200: 4 | C200: S | D200: 0 | E200: 1 | F200: 7 | G200: 2 | H200: 6 | I200: 0 | J200: 0 | K200: 0 | M200: Serviço | N200: Serviço | O200: - | P200: SINAPI | Q200: 89617 | R200: TE, PVC, SOLDÁVEL, DN 25MM, INSTALADO EM PRUMADA DE ÁGUA - FORNECIMENTO E INSTALAÇÃO. AF_12/2014 | S200: UN | T200: 2 | W200: 0
A201: S | B201: 4 | C201: S | D201: 0 | E201: 1 | F201: 7 | G201: 2 | H201: 6 | I201: 0 | J201: 0 | K201: 0 | M201: Serviço | N201: Serviço | O201: - | P201: SINAPI | Q201: 89623 | R201: TE, PVC, SOLDÁVEL, DN 40MM, INSTALADO EM PRUMADA DE ÁGUA - FORNECIMENTO E INSTALAÇÃO. AF_12/2014 | S201: UN | T201: 2 | W201: 0
A202: S | B202: 4 | C202: S | D202: 0 | E202: 1 | F202: 7 | G202: 2 | H202: 6 | I202: 0 | J202: 0 | K202: 0 | M202: Serviço | N202: Serviço | O202: - | P202: SINAPI | Q202: 89625 | R202: TE, PVC, SOLDÁVEL, DN 50MM, INSTALADO EM PRUMADA DE ÁGUA - FORNECIMENTO E INSTALAÇÃO. AF_12/2014 | S202: UN | T202: 3 | W202: 0 | X202: Referência: AGETOP - 81405
A203: 3 | B203: 3 | C203: 3 | D203: 31 | E203: 1 | F203: 7 | G203: 3 | H203: 0 | I203: 0 | J203: 36 | K203: 31 | M203: Nível 3 | N203: Nível 3 | O203: - | P203: SINAPI | R203: ESGOTO SANITÁRIO | S203: - | W203: 0
A204: 4 | B204: 4 | C204: 4 | D204: 2 | E204: 1 | F204: 7 | G204: 3 | H204: 1 | I204: 0 | J204: 30 | K204: 2 | M204: Nível 4 | N204: Nível 4 | O204: - | P204: SINAPI | R204: CORPO DE CAIXA SIFONADA / RALO | S204: - | W204: 0
A205: S | B205: 4 | C205: S | D205: 0 | E205: 1 | F205: 7 | G205: 3 | H205: 1 | I205: 0 | J205: 0 | K205: 0 | M205: Serviço | N205: Serviço | O205: - | P205: AGETOP | Q205: 81663 | R205: CORPO CX. SIFONADA DIAM. 150 X 150 X 50 | S205: Un | T205: 3 | W205: 0
A206: 4 | B206: 4 | C206: 4 | D206: 4 | E206: 1 | F206: 7 | G206: 3 | H206: 2 | I206: 0 | J206: 28 | K206: 4 | M206: Nível 4 | N206: Nível 4 | O206: - | P206: SINAPI | R206: CURVAS | S206: - | W206: 0
... 315 more rows

Sheet Resumo
B3: UNIDADE ESCOLAR | G3: CÓDIGO INEP
B4: =Orçamento!$O$4 -> COLÉGIO ESTADUAL FREDERICO JAYME | G4: =Orçamento!V4 -> 52054365
B6: OBRA | G6: CIDADE
B7: =Orçamento!$O$7 -> REFORMA E AMPLIAÇÃO | G7: =Orçamento!$V$7 -> RIO VERDE
B9: ENDEREÇO | G9: CRE
B10: =Orçamento!$R$10 -> RUA TERCIO CAMPOS LEAO SN, SANTO ANTONIO, CEP:75906-420 | G10: =Orçamento!$O$10 -> RIO VERDE
B12: REFERÊNCIA | D12: DATA | G12: ÁREA TOTAL CONSTRUÍDA (M²)
B13: =CONCATENATE("AGETOP E SINAPI - ",Orçamento!$T$10) -> AGETOP E SINAPI - DESONERADA | D13: =Orçamento!$S$7 -> 2020-04-16 | G13: =Orçamento!$V$13 -> 1425.05 | R13: 25.2 | V13: 1425.05
A14: FILTRO
B15: RESUMO GERAL DO ORÇAMENTO
A16: ↓ | B16: ITEM | C16: DESCRIÇÃO DOS SERVIÇOS | E16: UNID | F16: QUANT | G16: PREÇO SEM BDI | H16: PREÇO COM BDI | I16: PARTICIP. (%)
A17: =IF(H17>0,"F","") ->  | B17: 1. | C17: =Orçamento!$P501 -> REFORMA E AMPLIAÇÃO | E17: =IF(C17<>"","UN","") -> UN | F17: =IF(C17<>"",1,"") -> 1 | G17: =IFERROR(Orçamento!S501,"-") -> 0 | H17: =IFERROR(Orçamento!V501,"") -> 0 | I17: =Orçamento!X501 -> 100
A18: =IF(H18>0,"F","") ->  | B18: 2. | C18: =Orçamento!$P502 ->  | E18: =IF(C18<>"","UN","") ->  | F18: =IF(C18<>"",1,"") ->  | G18: =IFERROR(Orçamento!S502,"-") -> 0 | H18: =IFERROR(Orçamento!V502,"") -> 0 | I18: =Orçamento!X502 -> 0
A19: =IF(H19>0,"F","") ->  | B19: 3. | C19: =Orçamento!$P503 ->  | G19: =IFERROR(Orçamento!S503,"-") -> 0 | H19: =IFERROR(Orçamento!V503,"") -> 0 | I19: =Orçamento!X503 -> 0
B20: 4. | C20: =Orçamento!$P504 ->  | G20: =IFERROR(Orçamento!S504,"-") -> 0 | H20: =IFERROR(Orçamento!V504,"") -> 0 | I20: =Orçamento!X504 -> 0
B21: 5. | C21: =Orçamento!$P505 ->  | G21: =IFERROR(Orçamento!S505,"-") -> 0 | H21: =IFERROR(Orçamento!V505,"") -> 0 | I21: =Orçamento!X505 -> 0
B22: 6. | C22: =Orçamento!$P506 ->  | G22: =IFERROR(Orçamento!S506,"-") -> 0 | H22: =IFERROR(Orçamento!V506,"") -> 0 | I22: =Orçamento!X506 -> 0
B23: 7. | C23: =Orçamento!$P507 ->  | G23: =IFERROR(Orçamento!S507,"-") -> 0 | H23: =IFERROR(Orçamento!V507,"") -> 0 | I23: =Orçamento!X507 -> 0
B24: 8. | C24: =Orçamento!$P508 ->  | G24: =IFERROR(Orçamento!S508,"-") -> 0 | H24: =IFERROR(Orçamento!V508,"") -> 0 | I24: =Orçamento!X508 -> 0
B25: 9. | C25: =Orçamento!$P509 ->  | G25: =IFERROR(Orçamento!S509,"-") -> 0 | H25: =IFERROR(Orçamento!V509,"") -> 0 | I25: =Orçamento!X509 -> 0
B26: 10. | C26: =Orçamento!$P510 ->  | G26: =IFERROR(Orçamento!S510,"-") -> 0 | H26: =IFERROR(Orçamento!V510,"") -> 0 | I26: =Orçamento!X510 -> 0
B27: 11. | C27: =Orçamento!$P511 ->  | G27: =IFERROR(Orçamento!S511,"-") -> 0 | H27: =IFERROR(Orçamento!V511,"") -> 0 | I27: =Orçamento!X511 -> 0
B28: 12. | C28: =Orçamento!$P512 ->  | G28: =IFERROR(Orçamento!S512,"-") -> 0 | H28: =IFERROR(Orçamento!V512,"") -> 0 | I28: =Orçamento!X512 -> 0
B29: 13. | C29: =Orçamento!$P513 ->  | G29: =IFERROR(Orçamento!S513,"-") -> 0 | H29: =IFERROR(Orçamento!V513,"") -> 0 | I29: =Orçamento!X513 -> 0
B30: 14. | C30: =Orçamento!$P514 ->  | G30: =IFERROR(Orçamento!S514,"-") -> 0 | H30: =IFERROR(Orçamento!V514,"") -> 0 | I30: =Orçamento!X514 -> 0
B31: 15. | C31: =Orçamento!$P515 ->  | G31: =IFERROR(Orçamento!S515,"-") -> 0 | H31: =IFERROR(Orçamento!V515,"") -> 0 | I31: =Orçamento!X515 -> 0
B32: 16. | C32: =Orçamento!$P516 ->  | G32: =IFERROR(Orçamento!S516,"-") -> 0 | H32: =IFERROR(Orçamento!V516,"") -> 0 | I32: =Orçamento!X516 -> 0
B33: 17. | C33: =Orçamento!$P517 ->  | G33: =IFERROR(Orçamento!S517,"-") -> 0 | H33: =IFERROR(Orçamento!V517,"") -> 0 | I33: =Orçamento!X517 -> 0
B34: 18. | C34: =Orçamento!$P518 ->  | G34: =IFERROR(Orçamento!S518,"-") -> 0 | H34: =IFERROR(Orçamento!V518,"") -> 0 | I34: =Orçamento!X518 -> 0
B35: 19. | C35: =Orçamento!$P519 ->  | G35: =IFERROR(Orçamento!S519,"-") -> 0 | H35: =IFERROR(Orçamento!V519,"") -> 0 | I35: =Orçamento!X519 -> 0
B36: 20. | C36: =Orçamento!$P520 ->  | G36: =IFERROR(Orçamento!S520,"-") -> 0 | H36: =IFERROR(Orçamento!V520,"") -> 0 | I36: =Orçamento!X520 -> 0
A37: F | B37: TOTAL GERAL DO ORÇAMENTO (R$) | G37: =SUM(G17:G36) -> 0 | H37: =SUM(H17:H36) -> 0 | I37: =SUM(I17:I36) -> 100
A38: F
A39: F

Sheet Somatório
B3: UNIDADE ESCOLAR | E3: CÓDIGO INEP
B4: =Orçamento!$O$4 -> COLÉGIO ESTADUAL FREDERICO JAYME | E4: =Orçamento!V4 -> 52054365
B6: OBRA | E6: CIDADE
B7: =Orçamento!$O$7 -> REFORMA E AMPLIAÇÃO | E7: =Orçamento!$V$7 -> RIO VERDE
B9: ENDEREÇO | E9: CRE
B10: =Orçamento!$R$10 -> RUA TERCIO CAMPOS LEAO SN, SANTO ANTONIO, CEP:75906-420 | E10: =Orçamento!$O$10 -> RIO VERDE
B12: REFERÊNCIA | D12: DATA | E12: ÁREA TOTAL CONSTRUÍDA (M²)
B13: =CONCATENATE("AGETOP E SINAPI - ",Orçamento!$T$10) -> AGETOP E SINAPI - DESONERADA | D13: =Orçamento!$S$7 -> 2020-04-16 | E13: =Orçamento!$V$13 -> 1425.05 | R13: 25.2 | V13: 1425.05
A14: FILTRO
B15: SOMATÓRIO DE SERVIÇOS
A16: ↓ | B16: ITEM | C16: DESCRIÇÃO DOS SERVIÇOS | D16: PREÇO SEM BDI (R$) | E16: PREÇO COM BDI (R$) | F16: PARTIC. ( % )
A17: =IF(D17>0,"F","") ->  | B17: a. | C17: =Orçamento!P467 -> SERVIÇOS PRELIMINARES | D17: =Orçamento!S467 -> 0 | E17: =Orçamento!V467 -> 0 | F17: =Orçamento!X467 -> 0
A18: =IF(D18>0,"F","") ->  | B18: b. | C18: =Orçamento!P468 -> TRANSPORTES | D18: =Orçamento!S468 -> 0 | E18: =Orçamento!V468 -> 0 | F18: =Orçamento!X468 -> 0
B19: c. | C19: =Orçamento!P469 -> SERVIÇO EM TERRA | D19: =Orçamento!S469 -> 0 | E19: =Orçamento!V469 -> 0 | F19: =Orçamento!X469 -> 0
B20: d. | C20: =Orçamento!P470 -> FUNDAÇÕES E SONDAGENS | D20: =Orçamento!S470 -> 0 | E20: =Orçamento!V470 -> 0 | F20: =Orçamento!X470 -> 0
B21: e. | C21: =Orçamento!P471 -> ESTRUTURA | D21: =Orçamento!S471 -> 0 | E21: =Orçamento!V471 -> 0 | F21: =Orçamento!X471 -> 0
B22: f. | C22: =Orçamento!P472 -> INSTALAÇÕES ELÉTRICAS | D22: =Orçamento!S472 -> 0 | E22: =Orçamento!V472 -> 0 | F22: =Orçamento!X472 -> 0
B23: g. | C23: =Orçamento!P473 -> INSTALAÇÕES HIDROSSANITÁRIAS | D23: =Orçamento!S473 -> 0 | E23: =Orçamento!V473 -> 0 | F23: =Orçamento!X473 -> 0
B24: h. | C24: =Orçamento!P474 -> INSTALAÇÕES ESPECIAIS | D24: =Orçamento!S474 -> 0 | E24: =Orçamento!V474 -> 0 | F24: =Orçamento!X474 -> 0
B25: i. | C25: =Orçamento!P475 -> ALVENARIAS E DIVISÓRIAS | D25: =Orçamento!S475 -> 0 | E25: =Orçamento!V475 -> 0 | F25: =Orçamento!X475 -> 0
B26: j. | C26: =Orçamento!P476 -> ALVENARIA AUTO-PORTANTE | D26: =Orçamento!S476 -> 0 | E26: =Orçamento!V476 -> 0 | F26: =Orçamento!X476 -> 0
B27: k. | C27: =Orçamento!P477 -> IMPERMEABILIZAÇÃO | D27: =Orçamento!S477 -> 0 | E27: =Orçamento!V477 -> 0 | F27: =Orçamento!X477 -> 0
B28: l. | C28: =Orçamento!P478 -> ISOLAMENTO TÉRMICO E ACÚSTICO | D28: =Orçamento!S478 -> 0 | E28: =Orçamento!V478 -> 0 | F28: =Orçamento!X478 -> 0
B29: m. | C29: =Orçamento!P479 -> ESTRUTURA DE MADEIRA | D29: =Orçamento!S479 -> 0 | E29: =Orçamento!V479 -> 0 | F29: =Orçamento!X479 -> 0
B30: n. | C30: =Orçamento!P480 -> ESTRUTURAS METÁLICAS | D30: =Orçamento!S480 -> 0 | E30: =Orçamento!V480 -> 0 | F30: =Orçamento!X480 -> 0
B31: o. | C31: =Orçamento!P481 -> COBERTURAS | D31: =Orçamento!S481 -> 0 | E31: =Orçamento!V481 -> 0 | F31: =Orçamento!X481 -> 0
B32: p. | C32: =Orçamento!P482 -> ESQUADRIAS DE MADEIRA | D32: =Orçamento!S482 -> 0 | E32: =Orçamento!V482 -> 0 | F32: =Orçamento!X482 -> 0
B33: q. | C33: =Orçamento!P483 -> ESQUADRIAS METÁLICAS | D33: =Orçamento!S483 -> 0 | E33: =Orçamento!V483 -> 0 | F33: =Orçamento!X483 -> 0
B34: r. | C34: =Orçamento!P484 -> VIDROS | D34: =Orçamento!S484 -> 0 | E34: =Orçamento!V484 -> 0 | F34: =Orçamento!X484 -> 0
B35: s. | C35: =Orçamento!P485 -> REVESTIMENTO DE PAREDE | D35: =Orçamento!S485 -> 0 | E35: =Orçamento!V485 -> 0 | F35: =Orçamento!X485 -> 0
B36: t. | C36: =Orçamento!P486 -> FORROS | D36: =Orçamento!S486 -> 0 | E36: =Orçamento!V486 -> 0 | F36: =Orçamento!X486 -> 0
B37: u. | C37: =Orçamento!P487 -> REVESTIMENTO DE PISO | D37: =Orçamento!S487 -> 0 | E37: =Orçamento!V487 -> 0 | F37: =Orçamento!X487 -> 0
B38: v. | C38: =Orçamento!P488 -> FERRAGENS | D38: =Orçamento!S488 -> 0 | E38: =Orçamento!V488 -> 0 | F38: =Orçamento!X488 -> 0
B39: w. | C39: =Orçamento!P489 -> MARCENARIA | D39: =Orçamento!S489 -> 0 | E39: =Orçamento!V489 -> 0 | F39: =Orçamento!X489 -> 0
B40: x. | C40: =Orçamento!P490 -> ADMINISTRAÇÃO | D40: =Orçamento!S490 -> 0 | E40: =Orçamento!V490 -> 0 | F40: =Orçamento!X490 -> 0
B41: y. | C41: =Orçamento!P491 -> PINTURA | D41: =Orçamento!S491 -> 0 | E41: =Orçamento!V491 -> 0 | F41: =Orçamento!X491 -> 0
B42: z. | C42: =Orçamento!P492 -> DIVERSOS | D42: =Orçamento!S492 -> 0 | E42: =Orçamento!V492 -> 0 | F42: =Orçamento!X492 -> 0
A43: F | B43: TOTAL GERAL DO ORÇAMENTO | D43: =SUM(D17:D42) -> 0 | E43: =SUM(E17:E42) -> 0 | F43: =SUM(F17:F42) -> 0
B45: (*) Para itens da AGETOP, os vidros não estão inclusos nas esquadrias e já foram considerados os custos de contramarco para as esquadrias de alumínio;

Sheet Cronog_60_Dias
B3: UNIDADE ESCOLAR | I3: PRAZO
B4: =Orçamento!$O$4 -> COLÉGIO ESTADUAL FREDERICO JAYME | I4: 60 DIAS CORRIDOS
B6: OBRA | I6: DATA
B7: =Orçamento!$O$7 -> REFORMA E AMPLIAÇÃO | I7: =Orçamento!$S$7 -> 2020-04-16
B9: LOCAL | I9: ÁREA TOTAL CONSTRUÍDA (M²)
A10: FILTRO | B10: =Orçamento!$V$7 -> RIO VERDE | I10: =Orçamento!$V$13 -> 1425.05
B12: CRONOGRAMA - FÍSICO FINANCEIRO
A13: ↓ | B13: CUSTO TOTAL: | C13: =D93 -> 0 | D13: VALOR | E13: Dias: | F13: 30 | J13: 60 | N13: TOTAL | R13: 25.2 | V13: 1425.05
B14: DESCRIÇÃO DOS SERVIÇOS | E14: % | F14: 1ª PARCELA | J14: 2ª PARCELA
A15: =IF(D15>0,"F","") ->  | B15: SERVIÇOS PRELIMINARES | D15: =Orçamento!V467 -> 0 | E15: =Orçamento!X467 -> 0 | F15: =ROUND(F17*$D$15,2) -> 0 | J15: =ROUND(J17*$D$15,2) -> 0 | N15: =SUM(F15:M15) -> 0 | P15: =IF(D15=N15,"OK","ERRO") -> OK
A16: =IF(A15="F",A15,"") -> 
A17: =IF(A16="F",A16,"") ->  | F17: 1 | J17: =1-F17 -> 0 | N17: =IFERROR(E15/100,"") -> 0 | P17: =IF(E15=N17*100,"OK","ERRO") -> OK
A18: =IF(D18>0,"F","") ->  | B18: TRANSPORTES | D18: =Orçamento!V468 -> 0 | E18: =Orçamento!X468 -> 0 | F18: =ROUND(F20*$D$18,2) -> 0 | J18: =ROUND(J20*$D$18,2) -> 0 | N18: =SUM(F18:M18) -> 0 | P18: =IF(D18=N18,"OK","ERRO") -> OK
A19: =IF(A18="F",A18,"") -> 
A20: =IF(A19="F",A19,"") ->  | F20: 0.48 | J20: =1-F20 -> 0.52 | N20: =IFERROR(E18/100,"") -> 0 | P20: =IF(E18=N20*100,"OK","ERRO") -> OK
A21: =IF(D21>0,"F","") ->  | B21: SERVIÇO EM TERRA | D21: =Orçamento!V469 -> 0 | E21: =Orçamento!X469 -> 0 | F21: =ROUND(F23*$D$21,2) -> 0 | J21: =ROUND(J23*$D$21,2) -> 0 | N21: =SUM(F21:M21) -> 0 | P21: =IF(D21=N21,"OK","ERRO") -> OK
A22: =IF(A21="F",A21,"") -> 
A23: =IF(A22="F",A22,"") ->  | F23: 1 | J23: =1-F23 -> 0 | N23: =IFERROR(E21/100,"") -> 0 | P23: =IF(E21=N23*100,"OK","ERRO") -> OK
A24: =IF(D24>0,"F","") ->  | B24: FUNDAÇÕES E SONDAGENS | D24: =Orçamento!V470 -> 0 | E24: =Orçamento!X470 -> 0 | F24: =ROUND(F26*$D$24,2) -> 0 | J24: =ROUND(J26*$D$24,2) -> 0 | N24: =SUM(F24:M24) -> 0 | P24: =IF(D24=N24,"OK","ERRO") -> OK
A25: =IF(A24="F",A24,"") -> 
A26: =IF(A25="F",A25,"") ->  | F26: 1 | J26: =1-F26 -> 0 | N26: =IFERROR(E24/100,"") -> 0 | P26: =IF(E24=N26*100,"OK","ERRO") -> OK
A27: =IF(D27>0,"F","") ->  | B27: ESTRUTURA | D27: =Orçamento!V471 -> 0 | E27: =Orçamento!X471 -> 0 | F27: =ROUND(F29*$D$27,2) -> 0 | J27: =ROUND(J29*$D$27,2) -> 0 | N27: =SUM(F27:M27) -> 0 | P27: =IF(D27=N27,"OK","ERRO") -> OK
A28: =IF(A27="F",A27,"") -> 
A29: =IF(A28="F",A28,"") ->  | F29: 0.49 | J29: =1-F29 -> 0.51 | N29: =IFERROR(E27/100,"") -> 0 | P29: =IF(E27=N29*100,"OK","ERRO") -> OK
A30: =IF(D30>0,"F","") ->  | B30: INST.ELET/TELEFÔNICA/CABEAMENTO ESTRUTURADO | D30: =Orçamento!V472 -> 0 | E30: =Orçamento!X472 -> 0 | F30: =ROUND(F32*$D$30,2) -> 0 | J30: =ROUND(J32*$D$30,2) -> 0 | N30: =SUM(F30:M30) -> 0 | P30: =IF(D30=N30,"OK","ERRO") -> OK
A31: =IF(A30="F",A30,"") -> 
A32: =IF(A31="F",A31,"") ->  | F32: 0.4 | J32: =1-F32 -> 0.6 | N32: =IFERROR(E30/100,"") -> 0 | P32: =IF(E30=N32*100,"OK","ERRO") -> OK
A33: =IF(D33>0,"F","") ->  | B33: INSTALAÇÕES HIDROSSANITÁRIAS | D33: =Orçamento!V473 -> 0 | E33: =Orçamento!X473 -> 0 | F33: =ROUND(F35*$D$33,2) -> 0 | J33: =ROUND(J35*$D$33,2) -> 0 | N33: =SUM(F33:M33) -> 0 | P33: =IF(D33=N33,"OK","ERRO") -> OK
A34: =IF(A33="F",A33,"") -> 
A35: =IF(A34="F",A34,"") ->  | F35: 0.48 | J35: =1-F35 -> 0.52 | N35: =IFERROR(E33/100,"") -> 0 | P35: =IF(E33=N35*100,"OK","ERRO") -> OK
A36: =IF(D36>0,"F","") ->  | B36: INSTALAÇÕES ESPECIAIS | D36: =Orçamento!V474 -> 0 | E36: =Orçamento!X474 -> 0 | F36: =ROUND(F38*$D$36,2) -> 0 | J36: =ROUND(J38*$D$36,2) -> 0 | N36: =SUM(F36:M36) -> 0 | P36: =IF(D36=N36,"OK","ERRO") -> OK
A37: =IF(A36="F",A36,"") -> 
A38: =IF(A37="F",A37,"") ->  | F38: 1 | J38: =1-F38 -> 0 | N38: =IFERROR(E36/100,"") -> 0 | P38: =IF(E36=N38*100,"OK","ERRO") -> OK
A39: =IF(D39>0,"F","") ->  | B39: ALVENARIA E DIVISÓRIAS | D39: =Orçamento!V475 -> 0 | E39: =Orçamento!X475 -> 0 | F39: =ROUND(F41*$D$39,2) -> 0 | J39: =ROUND(J41*$D$39,2) -> 0 | N39: =SUM(F39:M39) -> 0 | P39: =IF(D39=N39,"OK","ERRO") -> OK
A40: =IF(A39="F",A39,"") -> 
A41: =IF(A40="F",A40,"") ->  | F41: 1 | J41: =1-F41 -> 0 | N41: =IFERROR(E39/100,"") -> 0 | P41: =IF(E39=N41*100,"OK","ERRO") -> OK
A42: =IF(D42>0,"F","") ->  | B42: ALVENARIA AUTO-PORTANTE | D42: =Orçamento!V476 -> 0 | E42: =Orçamento!X476 -> 0 | F42: =ROUND(F44*$D$42,2) -> 0 | J42: =ROUND(J44*$D$42,2) -> 0 | N42: =SUM(F42:M42) -> 0 | P42: =IF(D42=N42,"OK","ERRO") -> OK
A43: =IF(A42="F",A42,"") -> 
A44: =IF(A43="F",A43,"") ->  | F44: 1 | J44: =1-F44 -> 0 | N44: =IFERROR(E42/100,"") -> 0 | P44: =IF(E42=N44*100,"OK","ERRO") -> OK
A45: =IF(D45>0,"F","") ->  | B45: IMPERMEABILIZAÇÃO | D45: =Orçamento!V477 -> 0 | E45: =Orçamento!X477 -> 0 | F45: =ROUND(F47*$D$45,2) -> 0 | J45: =ROUND(J47*$D$45,2) -> 0 | N45: =SUM(F45:M45) -> 0 | P45: =IF(D45=N45,"OK","ERRO") -> OK
A46: =IF(A45="F",A45,"") -> 
A47: =IF(A46="F",A46,"") ->  | F47: 1 | J47: =1-F47 -> 0 | N47: =IFERROR(E45/100,"") -> 0 | P47: =IF(E45=N47*100,"OK","ERRO") -> OK
A48: =IF(D48>0,"F","") ->  | B48: ISOLAMENTO TÉRMICO E ACÚSTICO | D48: =Orçamento!V478 -> 0 | E48: =Orçamento!X478 -> 0 | F48: =ROUND(F50*$D$48,2) -> 0 | J48: =ROUND(J50*$D$48,2) -> 0 | N48: =SUM(F48:M48) -> 0 | P48: =IF(D48=N48,"OK","ERRO") -> OK
A49: =IF(A48="F",A48,"") -> 
A50: =IF(A49="F",A49,"") ->  | F50: 0.5 | J50: =1-F50 -> 0.5 | N50: =IFERROR(E48/100,"") -> 0 | P50: =IF(E48=N50*100,"OK","ERRO") -> OK
A51: =IF(D51>0,"F","") ->  | B51: ESTRUTURA DE MADEIRA | D51: =Orçamento!V479 -> 0 | E51: =Orçamento!X479 -> 0 | F51: =ROUND(F53*$D$51,2) -> 0 | J51: =ROUND(J53*$D$51,2) -> 0 | N51: =SUM(F51:M51) -> 0 | P51: =IF(D51=N51,"OK","ERRO") -> OK
A52: =IF(A51="F",A51,"") -> 
A53: =IF(A52="F",A52,"") ->  | F53: 0.4 | J53: =1-F53 -> 0.6 | N53: =IFERROR(E51/100,"") -> 0 | P53: =IF(E51=N53*100,"OK","ERRO") -> OK
A54: =IF(D54>0,"F","") ->  | B54: ESTRUTURA METÁLICA | D54: =Orçamento!V480 -> 0 | E54: =Orçamento!X480 -> 0 | F54: =ROUND(F56*$D$54,2) -> 0 | J54: =ROUND(J56*$D$54,2) -> 0 | N54: =SUM(F54:M54) -> 0 | P54: =IF(D54=N54,"OK","ERRO") -> OK
A55: =IF(A54="F",A54,"") -> 
A56: =IF(A55="F",A55,"") ->  | F56: 0.35 | J56: =1-F56 -> 0.65 | N56: =IFERROR(E54/100,"") -> 0 | P56: =IF(E54=N56*100,"OK","ERRO") -> OK
A57: =IF(D57>0,"F","") ->  | B57: COBERTURAS | D57: =Orçamento!V481 -> 0 | E57: =Orçamento!X481 -> 0 | F57: =ROUND(F59*$D$57,2) -> 0 | J57: =ROUND(J59*$D$57,2) -> 0 | N57: =SUM(F57:M57) -> 0 | P57: =IF(D57=N57,"OK","ERRO") -> OK
A58: =IF(A57="F",A57,"") -> 
A59: =IF(A58="F",A58,"") ->  | F59: 0 | J59: =1-F59 -> 1 | N59: =IFERROR(E57/100,"") -> 0 | P59: =IF(E57=N59*100,"OK","ERRO") -> OK
A60: =IF(D60>0,"F","") ->  | B60: ESQUADRIAS DE MADEIRA | D60: =Orçamento!V482 -> 0 | E60: =Orçamento!X482 -> 0 | F60: =ROUND(F62*$D$60,2) -> 0 | J60: =ROUND(J62*$D$60,2) -> 0 | N60: =SUM(F60:M60) -> 0 | P60: =IF(D60=N60,"OK","ERRO") -> OK
A61: =IF(A60="F",A60,"") -> 
A62: =IF(A61="F",A61,"") ->  | F62: 0.54 | J62: =1-F62 -> 0.46 | N62: =IFERROR(E60/100,"") -> 0 | P62: =IF(E60=N62*100,"OK","ERRO") -> OK
A63: =IF(D63>0,"F","") ->  | B63: ESQUADRIAS METÁLICAS | D63: =Orçamento!V483 -> 0 | E63: =Orçamento!X483 -> 0 | F63: =ROUND(F65*$D$63,2) -> 0 | J63: =ROUND(J65*$D$63,2) -> 0 | N63: =SUM(F63:M63) -> 0 | P63: =IF(D63=N63,"OK","ERRO") -> OK
A64: =IF(A63="F",A63,"") -> 
A65: =IF(A64="F",A64,"") ->  | F65: 0.49 | J65: =1-F65 -> 0.51 | N65: =IFERROR(E63/100,"") -> 0 | P65: =IF(E63=N65*100,"OK","ERRO") -> OK
A66: =IF(D66>0,"F","") ->  | B66: VIDROS | D66: =Orçamento!V484 -> 0 | E66: =Orçamento!X484 -> 0 | F66: =ROUND(F68*$D$66,2) -> 0 | J66: =ROUND(J68*$D$66,2) -> 0 | N66: =SUM(F66:M66) -> 0 | P66: =IF(D66=N66,"OK","ERRO") -> OK
A67: =IF(A66="F",A66,"") -> 
A68: =IF(A67="F",A67,"") ->  | F68: 0 | J68: =1-F68 -> 1 | N68: =IFERROR(E66/100,"") -> 0 | P68: =IF(E66=N68*100,"OK","ERRO") -> OK
A69: =IF(D69>0,"F","") ->  | B69: REVESTIMENTO DE PAREDE | D69: =Orçamento!V485 -> 0 | E69: =Orçamento!X485 -> 0 | F69: =ROUND(F71*$D$69,2) -> 0 | J69: =ROUND(J71*$D$69,2) -> 0 | N69: =SUM(F69:M69) -> 0 | P69: =IF(D69=N69,"OK","ERRO") -> OK
A70: =IF(A69="F",A69,"") -> 
A71: =IF(A70="F",A70,"") ->  | F71: 0.32 | J71: =1-F71 -> 0.68 | N71: =IFERROR(E69/100,"") -> 0 | P71: =IF(E69=N71*100,"OK","ERRO") -> OK
A72: =IF(D72>0,"F","") ->  | B72: FORROS | D72: =Orçamento!V486 -> 0 | E72: =Orçamento!X486 -> 0 | F72: =ROUND(F74*$D$72,2) -> 0 | J72: =ROUND(J74*$D$72,2) -> 0 | N72: =SUM(F72:M72) -> 0 | P72: =IF(D72=N72,"OK","ERRO") -> OK
A73: =IF(A72="F",A72,"") -> 
A74: =IF(A73="F",A73,"") ->  | F74: 0.24 | J74: =1-F74 -> 0.76 | N74: =IFERROR(E72/100,"") -> 0 | P74: =IF(E72=N74*100,"OK","ERRO") -> OK
A75: =IF(D75>0,"F","") ->  | B75: REVESTIMENTO DE PISO | D75: =Orçamento!V487 -> 0 | E75: =Orçamento!X487 -> 0 | F75: =ROUND(F77*$D$75,2) -> 0 | J75: =ROUND(J77*$D$75,2) -> 0 | N75: =SUM(F75:M75) -> 0 | P75: =IF(D75=N75,"OK","ERRO") -> OK
A76: =IF(A75="F",A75,"") -> 
A77: =IF(A76="F",A76,"") ->  | F77: 0.49 | J77: =1-F77 -> 0.51 | N77: =IFERROR(E75/100,"") -> 0 | P77: =IF(E75=N77*100,"OK","ERRO") -> OK
A78: =IF(D78>0,"F","") ->  | B78: FERRAGENS | D78: =Orçamento!V488 -> 0 | E78: =Orçamento!X488 -> 0 | F78: =ROUND(F80*$D$78,2) -> 0 | J78: =ROUND(J80*$D$78,2) -> 0 | N78: =SUM(F78:M78) -> 0 | P78: =IF(D78=N78,"OK","ERRO") -> OK
A79: =IF(A78="F",A78,"") -> 
A80: =IF(A79="F",A79,"") ->  | F80: 0 | J80: =1-F80 -> 1 | N80: =IFERROR(E78/100,"") -> 0 | P80: =IF(E78=N80*100,"OK","ERRO") -> OK
A81: =IF(D81>0,"F","") ->  | B81: MARCENARIA | D81: =Orçamento!V489 -> 0 | E81: =Orçamento!X489 -> 0 | F81: =ROUND(F83*$D$81,2) -> 0 | J81: =ROUND(J83*$D$81,2) -> 0 | N81: =SUM(F81:M81) -> 0 | P81: =IF(D81=N81,"OK","ERRO") -> OK
A82: =IF(A81="F",A81,"") -> 
A83: =IF(A82="F",A82,"") ->  | F83: 0.4 | J83: =1-F83 -> 0.6 | N83: =IFERROR(E81/100,"") -> 0 | P83: =IF(E81=N83*100,"OK","ERRO") -> OK
A84: =IF(D84>0,"F","") ->  | B84: ADMINISTRAÇÃO - MENSALISTAS | D84: =Orçamento!V490 -> 0 | E84: =Orçamento!X490 -> 0 | F84: =ROUND(F86*$D$84,2) -> 0 | J84: =ROUND(J86*$D$84,2) -> 0 | N84: =SUM(F84:M84) -> 0 | P84: =IF(D84=N84,"OK","ERRO") -> OK
A85: =IF(A84="F",A84,"") -> 
A86: =IF(A85="F",A85,"") ->  | F86: 0.49 | J86: =1-F86 -> 0.51 | N86: =IFERROR(E84/100,"") -> 0 | P86: =IF(E84=N86*100,"OK","ERRO") -> OK
A87: =IF(D87>0,"F","") ->  | B87: PINTURA | D87: =Orçamento!V491 -> 0 | E87: =Orçamento!X491 -> 0 | F87: =ROUND(F89*$D$87,2) -> 0 | J87: =ROUND(J89*$D$87,2) -> 0 | N87: =SUM(F87:M87) -> 0 | P87: =IF(D87=N87,"OK","ERRO") -> OK
A88: =IF(A87="F",A87,"") -> 
A89: =IF(A88="F",A88,"") ->  | F89: 0 | J89: =1-F89 -> 1 | N89: =IFERROR(E87/100,"") -> 0 | P89: =IF(E87=N89*100,"OK","ERRO") -> OK
A90: =IF(D90>0,"F","") ->  | B90: DIVERSOS | D90: =Orçamento!V492 -> 0 | E90: =Orçamento!X492 -> 0 | F90: =ROUND(F92*$D$90,2) -> 0 | J90: =ROUND(J92*$D$90,2) -> 0 | N90: =SUM(F90:M90) -> 0 | P90: =IF(D90=N90,"OK","ERRO") -> OK
A91: =IF(A90="F",A90,"") -> 
A92: =IF(A91="F",A91,"") ->  | F92: 0.46 | J92: =1-F92 -> 0.54 | N92: =IFERROR(E90/100,"") -> 0 | P92: =IF(E90=N92*100,"OK","ERRO") -> OK
A93: F | B93: CUSTO DO ORÇAMENTO | D93: =SUM(D15:D92) -> 0 | E93: =SUM(E15:E92) -> 0 | F93: =F15+F18+F21+F24+F27+F30+F33+F36+F39+F42+F45+F48+F51+F54+F57+F60+F63+F66+F69+F72+F75+F78+F81+F84+F87+F90 -> 0 | J93: =J15+J18+J21+J24+J27+J30+J33+J36+J39+J42+J45+J48+J51+J54+J57+J60+J63+J66+J69+J72+J75+J78+J81+J84+J87+J90 -> 0 | N93: =N15+N18+N21+N24+N27+N30+N33+N36+N39+N42+N45+N48+N51+N54+N57+N60+N63+N66+N69+N72+N75+N78+N81+N84+N87+N90 -> 0
A94: F | B94: PERCENTUAIS: | F94: =IFERROR(F93/D93,"") ->  | J94: =IFERROR(J93/D93,"") ->  | N94: =SUM(F94:M94) -> 0
A95: F | B95: TOTAIS ACUMULADOS: | F95: =F93 -> 0 | J95: =F95+J93 -> 0
A96: F | B96: PERCENTUAIS ACUMULADOS: | F96: =F94 ->  | J96: =IFERROR(F96+J94,"") -> 
A97: F
A98: F | B98: OBSERVAÇÕES:
A99: F | B99: Os pagamentos somente poderão ser efetuados mediante medição e atesto pelos técnicos da Secretaria da Educação.

Sheet Composição BDI
A3: UNIDADE ESCOLAR
A4: COLÉGIO ESTADUAL FREDERICO JAYME
A6: OBRA
A7: REFORMA E AMPLIAÇÃO
A9: ENDEREÇO
A10: RUA TERCIO CAMPOS LEAO SN, SANTO ANTONIO, CEP:75906-420
A12: CIDADE
A13: RIO VERDE | R13: 25.2 | V13: 1425.05
A15: CRE
A16: RIO VERDE
A18: DETALHAMENTO DA COMPOSIÇÃO DE BDI
A19: COMPOSIÇÃO BDI PARA OBRAS CIVIS | F19: BDI CONSTRUÇÃO E REFORMA
A20: DESCRIÇÃO | B20: COEF. | C20: TAXA % (a.m) | D20: % no preço de venda | F20: Situação | G20: 1º Quartil | H20: Médio | I20: 3º Quartil
A21: 1) COFINS | B21: 1 | C21: 0.03 | D21: 0.03 | F21: OK | G21: 0.03 | H21: 0.03 | I21: 0.03
A22: 2) PIS | B22: 1 | C22: 0.0065 | D22: 0.0065 | F22: OK | G22: 0.0065 | H22: 0.0065 | I22: 0.0065
A23: 3) ISSQN | B23: 1 | C23: 0.025 | D23: 0.025 | F23: OK | G23: 0.02 | H23: 0.035 | I23: 0.05
A24: 4) CPRB | B24: 1 | C24: 0.045 | D24: 0.045 | F24: OK | G24: 0.045 | H24: 0.045 | I24: 0.045
A25: 5) Administração Central | B25: 1 | C25: 0.04 | D25: 0.04 | F25: OK | G25: 0.03 | H25: 0.04 | I25: 0.055
A26: 6) Despesas Financeiras | B26: 1 | C26: 0.0056 | D26: 0.0056 | F26: FORA DO INTERVALO | G26: 0.0059 | H26: 0.0123 | I26: 0.0139
A27: 7) Seguros + Garantias | B27: 1 | C27: 0.0012 | D27: 0.0012 | F27: FORA DO INTERVALO | G27: 0.008 | H27: 0.008 | I27: 0.01
A28: 8) Risco | B28: 1 | C28: 0.0097 | D28: 0.0097 | F28: OK | G28: 0.0097 | H28: 0.0127 | I28: 0.0127
A29: 9) Lucro | B29: 1 | C29: 0.06872 | D29: 0.06872 | F29: OK | G29: 0.0616 | H29: 0.074 | I29: 0.0896
A30: BDI - FINAL | D30: 0.2640260861 | F30: FORA DO INTERVALO | G30: 0.2034 | H30: 0.2212 | I30: 0.25
A32: Notas:
A33: (1) e (2) Alíquota definida por lei.
A34: (3) Alíquota e base de cálculo definidas pela legislação municipal.
A35: (4) Alíquota definida pelas leis 12.546/11, 12844/13 e 13.161/15 (CPRB – contribuição previdenciária sobre a receita bruta).
A36: (5) Valores definidos a partir dos limites no Acórdão nº 2.622/2013 - TCU – Plenário. Valores entre o 1º e 3º quartis.
A37: (6) Valor calculado pela expressão matemática do acórdão 2.369/2011 – TCU – Plenário e disponibilizado pela AGETOP em dezembro de 2018. (Foi utilizado para o cálculo a média da Taxa SELIC no período de 11/2017 a 10/2018)
A39: (7) Valores definidos pela AGETOP a partir dos limites no Acórdão nº 2.622/2013 - TCU – Plenário. Valores médios. Observação da AGETOP: (Seguros contra erros de execução, incêndio e explosão, danos da natureza (vendaval, destelhamento, alagamento, inundação, desmoronamento, geadas etc.), emprego de material defeituoso ou inadequado, roubo e/ou furto qualificado, quebra de equipamentos, desmoronamento de estrutura, nas modalidades de Obras Civis em Construção (OCC); Instalação e Montagem (IM); e Obras Civis em Construção e Instalação e Montagem (OCC/IM). Bem como coberturas adicionais para ampliação dessas coberturas básicas, como: cobertura de responsabilidade civil geral, cobertura de responsabilidade civil cruzada, cobertura de despesas extraordinárias, cobertura de tumultos, cobertura de desentulho do local, cobertura de riscos do fabricante, dentre outras, incluindo o seguro de vida em grupo regido pela convenção coletiva dos trabalhadores na indústria da construção civil). A partir de 24/02/2015 por intermédio da Portaria 449/2015 a Presidência da AGETOP, na pessoa do Senhor Jayme Eduardo Rincon, determinou a exclusão dos valores referentes aos Seguros de Risco de Engenharia e Responsabilidade Civil do Profissional na composição do cálculo do B.D.I..
A40: (8) Valores definidos a partir dos limites no Acórdão nº 2.622/2013 - TCU – Plenário. Valores entre 1º e 3° quartis.
A41: (9) Valores definidos a partir dos limites definidos no Acórdão nº 2.622/2013 - TCU – Plenário. Valores adotados e praticados no mercado ( “ ex ante ” ) ou aqueles entre os 1º e 3º quartis.
A43: (*) A fórmula para estipulação da taxa de BDI estimado adotado é a mesma que foi aplicada para a obtenção das tabelas contidas no Acórdão n. 2.622/2013 – TCUPlenário
A45: Obs.: Para obras com valores superiores a R$ 20.000.000,00 sugere-se recalcular o BDI, dimensionando as taxas de administração central e lucro para patamares inferiores ao estipulado acima.

Sheet Relatório CENTRAL
B3: UNIDADE ESCOLAR | D3: CIDADE
B4: =Orçamento!$O$4 -> COLÉGIO ESTADUAL FREDERICO JAYME | D4: =Orçamento!$V$7 -> RIO VERDE
B6: OBRA | D6: CRE
B7: =Orçamento!$O$7 -> REFORMA E AMPLIAÇÃO | D7: =Orçamento!$O$10 -> RIO VERDE
B9: ENDEREÇO | D9: DATA
A10: FILTRO | B10: =Orçamento!$R$10 -> RUA TERCIO CAMPOS LEAO SN, SANTO ANTONIO, CEP:75906-420 | D10: =Orçamento!$S$7 -> 2020-04-16
B12: RELATÓRIO CENTRAL
A13: ↓ | B13: CÓDIGO | C13: ETAPA | D13: PREÇO (R$) C/ BDI | E13: PARTIC ( % ) | R13: 25.2 | V13: 1425.05
A14: =IF(D14>0,"F","") ->  | B14: =Orçamento!O467 -> a. | C14: =Orçamento!P467 -> SERVIÇOS PRELIMINARES | D14: =Orçamento!V467 -> 0 | E14: =Orçamento!X467 -> 0
A15: =IF(D15>0,"F","") ->  | B15: =Orçamento!O468 -> b. | C15: =Orçamento!P468 -> TRANSPORTES | D15: =Orçamento!V468 -> 0 | E15: =Orçamento!X468 -> 0
B16: =Orçamento!O469 -> c. | C16: =Orçamento!P469 -> SERVIÇO EM TERRA | D16: =Orçamento!V469 -> 0 | E16: =Orçamento!X469 -> 0
B17: =Orçamento!O470 -> d. | C17: =Orçamento!P470 -> FUNDAÇÕES E SONDAGENS | D17: =Orçamento!V470 -> 0 | E17: =Orçamento!X470 -> 0
B18: =Orçamento!O471 -> e. | C18: =Orçamento!P471 -> ESTRUTURA | D18: =Orçamento!V471 -> 0 | E18: =Orçamento!X471 -> 0
B19: =Orçamento!O472 -> f. | C19: =Orçamento!P472 -> INSTALAÇÕES ELÉTRICAS | D19: =Orçamento!V472 -> 0 | E19: =Orçamento!X472 -> 0
B20: =Orçamento!O473 -> g. | C20: =Orçamento!P473 -> INSTALAÇÕES HIDROSSANITÁRIAS | D20: =Orçamento!V473 -> 0 | E20: =Orçamento!X473 -> 0
B21: =Orçamento!O474 -> h | C21: =Orçamento!P474 -> INSTALAÇÕES ESPECIAIS | D21: =Orçamento!V474 -> 0 | E21: =Orçamento!X474 -> 0
B22: =Orçamento!O475 -> i. | C22: =Orçamento!P475 -> ALVENARIAS E DIVISÓRIAS | D22: =Orçamento!V475 -> 0 | E22: =Orçamento!X475 -> 0
B23: =Orçamento!O476 -> j. | C23: =Orçamento!P476 -> ALVENARIA AUTO-PORTANTE | D23: =Orçamento!V476 -> 0 | E23: =Orçamento!X476 -> 0
B24: =Orçamento!O477 -> k. | C24: =Orçamento!P477 -> IMPERMEABILIZAÇÃO | D24: =Orçamento!V477 -> 0 | E24: =Orçamento!X477 -> 0
B25: =Orçamento!O478 -> l. | C25: =Orçamento!P478 -> ISOLAMENTO TÉRMICO E ACÚSTICO | D25: =Orçamento!V478 -> 0 | E25: =Orçamento!X478 -> 0
B26: =Orçamento!O479 -> m. | C26: =Orçamento!P479 -> ESTRUTURA DE MADEIRA | D26: =Orçamento!V479 -> 0 | E26: =Orçamento!X479 -> 0
B27: =Orçamento!O480 -> n. | C27: =Orçamento!P480 -> ESTRUTURAS METÁLICAS | D27: =Orçamento!V480 -> 0 | E27: =Orçamento!X480 -> 0
B28: =Orçamento!O481 -> o. | C28: =Orçamento!P481 -> COBERTURAS | D28: =Orçamento!V481 -> 0 | E28: =Orçamento!X481 -> 0
B29: =Orçamento!O482 -> p. | C29: =Orçamento!P482 -> ESQUADRIAS DE MADEIRA | D29: =Orçamento!V482 -> 0 | E29: =Orçamento!X482 -> 0
B30: =Orçamento!O483 -> q. | C30: =Orçamento!P483 -> ESQUADRIAS METÁLICAS | D30: =Orçamento!V483 -> 0 | E30: =Orçamento!X483 -> 0
B31: =Orçamento!O484 -> r. | C31: =Orçamento!P484 -> VIDROS | D31: =Orçamento!V484 -> 0 | E31: =Orçamento!X484 -> 0
B32: =Orçamento!O485 -> s. | C32: =Orçamento!P485 -> REVESTIMENTO DE PAREDE | D32: =Orçamento!V485 -> 0 | E32: =Orçamento!X485 -> 0
B33: =Orçamento!O486 -> t. | C33: =Orçamento!P486 -> FORROS | D33: =Orçamento!V486 -> 0 | E33: =Orçamento!X486 -> 0
B34: =Orçamento!O487 -> u. | C34: =Orçamento!P487 -> REVESTIMENTO DE PISO | D34: =Orçamento!V487 -> 0 | E34: =Orçamento!X487 -> 0
B35: =Orçamento!O488 -> v. | C35: =Orçamento!P488 -> FERRAGENS | D35: =Orçamento!V488 -> 0 | E35: =Orçamento!X488 -> 0
B36: =Orçamento!O489 -> w. | C36: =Orçamento!P489 -> MARCENARIA | D36: =Orçamento!V489 -> 0 | E36: =Orçamento!X489 -> 0
B37: =Orçamento!O490 -> x. | C37: =Orçamento!P490 -> ADMINISTRAÇÃO | D37: =Orçamento!V490 -> 0 | E37: =Orçamento!X490 -> 0
B38: =Orçamento!O491 -> y. | C38: =Orçamento!P491 -> PINTURA | D38: =Orçamento!V491 -> 0 | E38: =Orçamento!X491 -> 0
B39: =Orçamento!O492 -> z. | C39: =Orçamento!P492 -> DIVERSOS | D39: =Orçamento!V492 -> 0 | E39: =Orçamento!X492 -> 0
A40: F | B40: TOTAL GERAL DO ORÇAMENTO (R$) C/BDI | D40: =SUM(D14:D39) -> 0 | E40: =SUM(E14:E39) -> 0

Sheet Parc Maior Relev
B3: UNIDADE ESCOLAR | E3: CÓDIGO INEP
B4: =Orçamento!$O$4 -> COLÉGIO ESTADUAL FREDERICO JAYME | E4: =Orçamento!$V$4 -> 52054365
B6: OBRA | E6: CIDADE
B7: =Orçamento!$O$7 -> REFORMA E AMPLIAÇÃO | E7: =Orçamento!$V$7 -> RIO VERDE
B9: CRE | E9: ÁREA TOTAL CONSTRUÍDA (M²)
B10: =Orçamento!$O$10 -> RIO VERDE | E10: =Orçamento!$V$13 -> 1425.05
A12: FILTRO | B12: PARCELA DE MAIOR RELEVÂNCIA
A13: =IF(G14>0,"F","") ->  | B13: CÓDIGO | C13: SERVIÇO | D13: DESCRIÇÃO | E13: UNID | F13: QUANT | G13: PARC. MAIOR RELEV (100%) | R13: 25.2 | V13: 1425.05
A14: =IF(G14>0,"F","") ->  | B14: =Somatório!B22 -> f. | C14: INSTALAÇÕES ELÉTRICAS | D14: SUBESTAÇÃO | E14: KVA | F14: =SUMIF(Orçamento!$R$20:$R$448,'Parc Maior Relev'!D14,Orçamento!$T$20:$T$448) -> 0 | G14: =F14 -> 0
A15: =IF(SUM(G16:G30)>0,"F","") -> F | B15: CÓDIGO | C15: SERVIÇO | D15: DESCRIÇÃO | E15: UNID | F15: QUANT | G15: PARC. MAIOR RELEV (50%)
A16: =IF(G16>0,"F","") -> F | B16: u. | C16: REVESTIMENTO DE PISO | D16: PISO EM GRANITINA | E16: m² | F16: 147.2 | G16: =F16*0.5 -> 73.6
A17: =IF(G17>0,"F","") -> F | B17: s. | C17: REVESTIMENTO DE PAREDE | D17: MASSA ÚNICA (REBOCO PAULISTA) | E17: m² | F17: 412 | G17: =F17*0.5 -> 206
A18: =IF(G18>0,"F","") ->  | B18: =Somatório!B31 -> o. | C18: COBERTURAS | D18: COBERTURA COM TELHA METÁLICA | E18: M2 | F18: =SUMIF(Orçamento!$R$20:$R$448,'Parc Maior Relev'!D18,Orçamento!$T$20:$T$448) -> 0 | G18: =F18*0.5 -> 0
B19: o. | C19: COBERTURAS | D19: COBERTURA COM TELHA METÁLICA | E19: M2 | F19: =SUMIF(Orçamento!$R$20:$R$448,'Parc Maior Relev'!D19,Orçamento!$T$20:$T$448) -> 0 | G19: 0
A20: F | B20: =Somatório!B35 -> s. | C20: REVESTIMENTO DE PAREDE | D20: LASTRO DE CONCRETO IMPERMEABILIZADO | E20: m² | F20: 496.48 | G20: 248.24
B21: s. | C21: REVESTIMENTO DE PAREDE | D21: REBOCO | E21: M2 | F21: =SUMIF(Orçamento!$R$20:$R$448,'Parc Maior Relev'!D21,Orçamento!$T$20:$T$448) -> 0 | G21: =F21*0.5 -> 0
B22: s. | C22: REVESTIMENTO DE PAREDE | D22: REVESTIMENTO CERÂMICO | E22: M2 | F22: =SUMIF(Orçamento!$R$20:$R$448,'Parc Maior Relev'!D22,Orçamento!$T$20:$T$448) -> 0 | G22: =F22*0.5 -> 0
B23: =Somatório!B36 -> t. | C23: FORROS | D23: FORRO DE GESSO | E23: M2 | F23: =SUMIF(Orçamento!$R$20:$R$448,'Parc Maior Relev'!D23,Orçamento!$T$20:$T$448) -> 0 | G23: =F23*0.5 -> 0
B24: t. | C24: FORROS | D24: FORRO DE PVC | E24: M2 | F24: =SUMIF(Orçamento!$R$20:$R$448,'Parc Maior Relev'!D24,Orçamento!$T$20:$T$448) -> 0 | G24: =F24*0.5 -> 0
B25: t. | C25: FORROS | D25: FORRO DE GESSO ACARTONADO | E25: M2 | F25: =SUMIF(Orçamento!$R$20:$R$448,'Parc Maior Relev'!D25,Orçamento!$T$20:$T$448) -> 0 | G25: =F25*0.5 -> 0
B26: u. | C26: REVESTIMENTO DE PISO | D26: PISO DE GRANITINA | E26: M2 | F26: =SUMIF(Orçamento!$R$20:$R$448,'Parc Maior Relev'!D26,Orçamento!$T$20:$T$448) -> 0 | G26: 0
B27: u. | C27: REVESTIMENTO DE PISO | D27: PISO LAMINADO | E27: M2 | F27: =SUMIF(Orçamento!$R$20:$R$448,'Parc Maior Relev'!D27,Orçamento!$T$20:$T$448) -> 0 | G27: 0
B28: u. | C28: REVESTIMENTO DE PISO | D28: PISO DE CONCRETO DESEMPENADO | E28: M2 | F28: =SUMIF(Orçamento!$R$20:$R$448,'Parc Maior Relev'!D28,Orçamento!$T$20:$T$448) -> 0 | G28: 0
B29: u. | C29: REVESTIMENTO DE PISO | D29: PISO CERÂMICO | E29: M2 | F29: =SUMIF(Orçamento!$R$20:$R$448,'Parc Maior Relev'!D29,Orçamento!$T$20:$T$448) -> 0 | G29: =F29*0.5 -> 0
B30: y. | C30: PINTURA | D30: PINTURA | E30: M2 | F30: =SUMIF(Orçamento!$R$20:$R$448,'Parc Maior Relev'!D30,Orçamento!$T$20:$T$448) -> 0 | G30: 0
A31: F
A32: F | B32: (*) Para os fins do inciso I dp § 1º do Art. 30 da Lei Federal 8.666/93, são consideradas parcelas de maior relevância técnica as execuções apresentadas
A33: F

Sheet Composições
A4: UNIDADE ESCOLAR | H4: CÓDIGO INEP
A5: =Orçamento!$O$4 -> COLÉGIO ESTADUAL FREDERICO JAYME | H5: =Orçamento!$V$4 -> 52054365
A7: OBRA | H7: CIDADE
A8: =Orçamento!$O$7 -> REFORMA E AMPLIAÇÃO | H8: =Orçamento!$V$7 -> RIO VERDE
A10: CRE | D10: ENDEREÇO | H10: REFERÊNCIA AGETOP
A11: =Orçamento!$O$10 -> RIO VERDE | D11: =Orçamento!$R$10 -> RUA TERCIO CAMPOS LEAO SN, SANTO ANTONIO, CEP:75906-420 | H11: =Orçamento!$S$10 -> ABR/19 | I11: =Orçamento!$T$10 -> DESONERADA
A13: DATA | D13: ÁREA TOTAL CONSTRUÍDA (M²) | H13: REFERÊNCIA SINAPI | R13: 25.2 | V13: 1425.05
A14: =Orçamento!$S$7 -> 2020-04-16 | D14: =Orçamento!$V$13 -> 1425.05 | H14: =Orçamento!$V$10 -> DEZ/19 | I14: =Orçamento!$W$10 -> DESONERADA
A16: COMPOSIÇÕES DE CUSTOS UNITÁRIOS - SEE-GO
A17: 385 | B17: FONTE | C17: CÓDIGO | D17: DESCRIÇÃO | E17: UNIDADE | F17: COEFIC. | G17: CUSTO UNITÁRIO | I17: CUSTO TOTAL (A) + (B) + (C) + (D) + (E)
G18: DESONERADO | H18: NÃO DESONER. | I18: DESONERADO | J18: NÃO DESONER.
B19: COMPOSIÇÃO | C19: COMP 385_SEE | D19: DEMOLIÇÃO POSTE DE CONCRETO/METALICA ENTRE 10 E 15 METROS C/ REAPROVEITAMENTO C/ TRANSPORTE ATE CAÇAMBA E CARGA | E19: UN | I19: 138.75 | J19: 140.14
B20: AGETOP_I | C20: 8 | D20: AJUDANTE | E20: h | F20: 1 | G20: 8.75 | H20: 10.14 | I20: 8.75 | J20: 10.14
B21: MÃO DE OBRA (B) - TOTAL | I21: 8.75 | J21: 10.14
B22: AGETOP | C22: 72080 | D22: POSTE/TRAFO - CAMINHÃO MUNCK 12 TON. (MÍNIMO 4H/DIA) | E22: H | F22: 1 | G22: 130 | H22: 130 | I22: 130 | J22: 130
B23: MATERIAL (C) - TOTAL | I23: 130 | J23: 130
A25: 554 | B25: FONTE | C25: CÓDIGO | D25: DESCRIÇÃO | E25: UNID | F25: COEFIC. | G25: CUSTO UNITÁRIO | I25: CUSTO TOTAL (A) + (B) + (C) + (D) + (E)
G26: DESONERADO | H26: NÃO DESONER. | I26: DESONERADO | J26: NÃO DESONER.
B27: COMPOSIÇÃO | C27: COMP 554_SEE | D27: CAIXA DE DECANTAÇÃO | E27: UN | F27: - | G27: - | H27: - | I27: 698.69 | J27: 743.82
B28: AGETOP | C28: 81840 | D28: TAMPA PARA CAIXA PASSAGEM FERRO FUNDIDO T-33 - TRÁFEGO LEVE | E28: Un | F28: 1 | G28: 114.58 | H28: 117 | I28: 114.58 | J28: 117
B29: AGETOP | C29: 81938 | D29: JOELHO 90 GRAUS DIAMETRO 100 MM | E29: Un | F29: 1 | G29: 15.63 | H29: 17.24 | I29: 15.63 | J29: 17.24
B30: AGETOP | C30: 82235 | D30: TE SANITARIO DIAMETRO 100 X 100 MM | E30: Un | F30: 1 | G30: 25.46 | H30: 27.1 | I30: 25.46 | J30: 27.1
B31: AGETOP | C31: 82304 | D31: TUBO SOLDAVEL P/ESGOTO DIAM. 100 MM | E31: m | F31: 3 | G31: 21.02 | H31: 22.89 | I31: 63.06 | J31: 68.67
B32: AGETOP | C32: 100102 | D32: ALVENARIA DE TIJOLO COMUM 1/2 VEZ - ARG. (1CI : 2CH : 8ARML) | E32: m2 | F32: 8 | G32: 57.8 | H32: 61.9 | I32: 462.4 | J32: 495.2
B33: AGETOP | C33: 220050 | D33: LASTRO DE CONCRETO REGULARIZADO SEM IMPERMEAB. 1:3:6 ESP= 5CM (BASE) | E33: m2 | F33: 1 | G33: 17.56 | H33: 18.61 | I33: 17.56 | J33: 18.61
B34: MÃO DE OBRA (B) - TOTAL | I34: 698.69 | J34: 743.82
B35: MATERIAL (C) - TOTAL | I35: 0 | J35: 0
A37: 382 | B37: FONTE | C37: CÓDIGO | D37: DESCRIÇÃO | E37: UNIDADE | F37: COEFIC. | G37: CUSTO UNITÁRIO | I37: CUSTO TOTAL (A) + (B) + (C) + (D) + (E)
G38: DESONERADO | H38: NÃO DESONER. | I38: DESONERADO | J38: NÃO DESONER.
B39: COMPOSIÇÃO | C39: COMP 382_SEE | D39: TE DE REDUCAO DE FERRO GALVANIZADO, COM ROSCA BSP, DE 3/4" X 1/2" | E39: UN | I39: 23.02 | J39: 25.2
B40: AGETOP_I | C40: 8 | D40: AJUDANTE | E40: h | F40: 0.6 | G40: 8.75 | H40: 10.14 | I40: 5.25 | J40: 6.08
B41: AGETOP_I | C41: 11 | D41: ENCANADOR | E41: h | F41: 0.6105 | G41: 13.95 | H41: 16.16 | I41: 8.52 | J41: 9.87
B42: MÃO DE OBRA (B) - TOTAL | I42: 13.77 | J42: 15.95
B43: SINAPI_I | C43: 3146 | D43: FITA VEDA ROSCA EM ROLOS DE 18 MM X 10 M (L X C) | E43: UN | F43: 0.120754717 | G43: 3.4 | H43: 3.4 | I43: 0.41 | J43: 0.41
B44: SINAPI_I | C44: 6302 | D44: TE DE REDUCAO DE FERRO GALVANIZADO, COM ROSCA BSP, DE 3/4" X 1/2" | E44: UN | F44: 1 | G44: 8.84 | H44: 8.84 | I44: 8.84 | J44: 8.84
B45: MATERIAL (C) - TOTAL | I45: 9.25 | J45: 9.25
A47: 383 | B47: FONTE | C47: CÓDIGO | D47: DESCRIÇÃO | E47: UNIDADE | F47: COEFIC. | G47: CUSTO UNITÁRIO | I47: CUSTO TOTAL (A) + (B) + (C) + (D) + (E)
G48: DESONERADO | H48: NÃO DESONER. | I48: DESONERADO | J48: NÃO DESONER.
B49: COMPOSIÇÃO | C49: COMP 383_SEE | D49: BUCHA DE REDUCAO DE FERRO GALVANIZADO, COM ROSCA BSP, DE 1/2" X 1/4" | E49: UN | I49: 7.22 | J49: 7.8
B50: AGETOP_I | C50: 8 | D50: AJUDANTE | E50: h | F50: 0.16 | G50: 8.75 | H50: 10.14 | I50: 1.4 | J50: 1.62
B51: AGETOP_I | C51: 11 | D51: ENCANADOR | E51: h | F51: 0.16 | G51: 13.95 | H51: 16.16 | I51: 2.23 | J51: 2.59
B52: MÃO DE OBRA (B) - TOTAL | I52: 3.63 | J52: 4.21
B53: AGETOP_I | C53: H689 | D53: FITA VEDAROSCA 12 MM | E53: m | F53: 1.2 | G53: 0.28 | H53: 0.28 | I53: 0.34 | J53: 0.34
B54: SINAPI_I | C54: 770 | D54: BUCHA DE REDUCAO DE FERRO GALVANIZADO, COM ROSCA BSP, DE 1/2" X 1/4" | E54: UN | F54: 1 | G54: 3.25 | H54: 3.25 | I54: 3.25 | J54: 3.25
B55: MATERIAL (C) - TOTAL | I55: 3.59 | J55: 3.59
A57: 212 | B57: FONTE | C57: CÓDIGO | D57: DESCRIÇÃO | E57: UNIDADE | F57: COEFIC. | G57: CUSTO UNITÁRIO | I57: CUSTO TOTAL (A) + (B) + (C) + (D) + (E)
G58: DESONERADO | H58: NÃO DESONER. | I58: DESONERADO | J58: NÃO DESONER.
B59: COMPOSIÇÃO | C59: COMP 212_SEE | D59: NIPLE DE REDUÇÃO 1/2" X 1/4" BSP | E59: UN | I59: 9.68 | J59: 10.26
B60: AGETOP_I | C60: 8 | D60: AJUDANTE | E60: h | F60: 0.16 | G60: 8.75 | H60: 10.14 | I60: 1.4 | J60: 1.62
B61: AGETOP_I | C61: 11 | D61: ENCANADOR | E61: h | F61: 0.16 | G61: 13.95 | H61: 16.16 | I61: 2.23 | J61: 2.59
B62: MÃO DE OBRA (B) - TOTAL | I62: 3.63 | J62: 4.21
B63: COTAÇÃO | C63: COT 103_SEE | D63: NIPLE DE REDUÇÃO 1/2" X 1/4" BSP | E63: UN | F63: 1 | G63: 6.053333333 | H63: 6.053333333 | I63: 6.05 | J63: 6.05
B64: MATERIAL (C) - TOTAL | I64: 6.05 | J64: 6.05
A66: 213 | B66: FONTE | C66: CÓDIGO | D66: DESCRIÇÃO | E66: UNIDADE | F66: COEFIC. | G66: CUSTO UNITÁRIO | I66: CUSTO TOTAL (A) + (B) + (C) + (D) + (E)
G67: DESONERADO | H67: NÃO DESONER. | I67: DESONERADO | J67: NÃO DESONER.
B68: COMPOSIÇÃO | C68: COMP 213_SEE | D68: NIPLE DE REDUÇÃO 3/4" X 1/2" BSP | E68: UN | I68: 13.34 | J68: 13.92
B69: AGETOP_I | C69: 8 | D69: AJUDANTE | E69: h | F69: 0.16 | G69: 8.75 | H69: 10.14 | I69: 1.4 | J69: 1.62
B70: AGETOP_I | C70: 11 | D70: ENCANADOR | E70: h | F70: 0.16 | G70: 13.95 | H70: 16.16 | I70: 2.23 | J70: 2.59
B71: MÃO DE OBRA (B) - TOTAL | I71: 3.63 | J71: 4.21
B72: COTAÇÃO | C72: COT 104_SEE | D72: NIPLE DE REDUÇÃO 3/4" X 1/2" BSP | E72: UN | F72: 1 | G72: 9.71 | H72: 9.71 | I72: 9.71 | J72: 9.71
B73: MATERIAL (C) - TOTAL | I73: 9.71 | J73: 9.71
A75: 237 | B75: FONTE | C75: CÓDIGO | D75: DESCRIÇÃO | E75: UNIDADE | F75: COEFIC. | G75: CUSTO UNITÁRIO | I75: CUSTO TOTAL (A) + (B) + (C) + (D) + (E)
G76: DESONERADO | H76: NÃO DESONER. | I76: DESONERADO | J76: NÃO DESONER.
B77: COMPOSIÇÃO | C77: COMP 237_SEE | D77: FITA ANTICORROSIVA | E77: M | I77: 11.16 | J77: 11.88
B78: AGETOP_I | C78: 8 | D78: AJUDANTE | E78: h | F78: 0.2 | G78: 8.75 | H78: 10.14 | I78: 1.75 | J78: 2.03
B79: AGETOP_I | C79: 12 | D79: ELETRICISTA | E79: h | F79: 0.2 | G79: 13.95 | H79: 16.16 | I79: 2.79 | J79: 3.23
B80: MÃO DE OBRA (B) - TOTAL | I80: 4.54 | J80: 5.26
B81: SINAPI_I | C81: 39634 | D81: FITA ADESIVA ANTICORROSIVA DE PVC FLEXIVEL, COR PRETA, PARA PROTECAO TUBULACAO, 50 MM X 30 M (L X C), E= *0,25* MM | E81: M | F81: 1 | G81: 6.62 | H81: 6.62 | I81: 6.62 | J81: 6.62
B82: MATERIAL (C) - TOTAL | I82: 6.62 | J82: 6.62
A84: 542 | B84: FONTE | C84: CÓDIGO | D84: DESCRIÇÃO | E84: UNIDADE | F84: COEFIC. | G84: CUSTO UNITÁRIO | I84: CUSTO TOTAL (A) + (B) + (C) + (D) + (E)
G85: DESONERADO | H85: NÃO DESONER. | I85: DESONERADO | J85: NÃO DESONER.
B86: COMPOSIÇÃO | C86: COMP 542_SEE | D86: VÁLVULA UGV 3/4" (S) LATÃO | E86: UN | I86: 25.65 | J86: 27.2
B87: AGETOP_I | C87: 8 | D87: AJUDANTE | E87: h | F87: 0.432 | G87: 8.75 | H87: 10.14 | I87: 3.78 | J87: 4.38
B88: AGETOP_I | C88: 11 | D88: ENCANADOR | E88: h | F88: 0.432 | G88: 13.95 | H88: 16.16 | I88: 6.03 | J88: 6.98
B89: MÃO DE OBRA (B) - TOTAL | I89: 9.81 | J89: 11.36
B90: COTAÇÃO | C90: COT 281_SEE | D90: VÁLVULA UGV 3/4" (S) LATÃO | E90: UN | F90: 1 | G90: 15.83666667 | H90: 15.83666667 | I90: 15.84 | J90: 15.84
B91: MATERIAL (C) - TOTAL | I91: 15.84 | J91: 15.84
A93: 543 | B93: FONTE | C93: CÓDIGO | D93: DESCRIÇÃO | E93: UNIDADE | F93: COEFIC. | G93: CUSTO UNITÁRIO | I93: CUSTO TOTAL (A) + (B) + (C) + (D) + (E)
G94: DESONERADO | H94: NÃO DESONER. | I94: DESONERADO | J94: NÃO DESONER.
B95: COMPOSIÇÃO | C95: COMP 543_SEE | D95: VÁLVULA UGV 1/2" (S) LATÃO | E95: UN | I95: 24.98 | J95: 26.53
B96: AGETOP_I | C96: 8 | D96: AJUDANTE | E96: h | F96: 0.432 | G96: 8.75 | H96: 10.14 | I96: 3.78 | J96: 4.38
B97: AGETOP_I | C97: 11 | D97: ENCANADOR | E97: h | F97: 0.432 | G97: 13.95 | H97: 16.16 | I97: 6.03 | J97: 6.98
B98: MÃO DE OBRA (B) - TOTAL | I98: 9.81 | J98: 11.36
B99: COTAÇÃO | C99: COT 282_SEE | D99: VÁLVULA UGV 1/2" (S) LATÃO | E99: UN | F99: 1 | G99: 15.16666667 | H99: 15.16666667 | I99: 15.17 | J99: 15.17
B100: MATERIAL (C) - TOTAL | I100: 15.17 | J100: 15.17
A102: 211 | B102: FONTE | C102: CÓDIGO | D102: DESCRIÇÃO | E102: UNIDADE | F102: COEFIC. | G102: CUSTO UNITÁRIO | I102: CUSTO TOTAL (A) + (B) + (C) + (D) + (E)
G103: DESONERADO | H103: NÃO DESONER. | I103: DESONERADO | J103: NÃO DESONER.
B104: COMPOSIÇÃO | C104: COMP 211_SEE | D104: REGULADOR DE 2º ESTÁGIO 5KG/H | E104: UN | I104: 86.72 | J104: 90.86
B105: AGETOP_I | C105: 8 | D105: AJUDANTE | E105: h | F105: 1.15 | G105: 8.75 | H105: 10.14 | I105: 10.06 | J105: 11.66
B106: AGETOP_I | C106: 11 | D106: ENCANADOR | E106: h | F106: 1.15 | G106: 13.95 | H106: 16.16 | I106: 16.04 | J106: 18.58
B107: MÃO DE OBRA (B) - TOTAL | I107: 26.1 | J107: 30.24
B108: COTAÇÃO | C108: COT 102_SEE | D108: REGULADOR DE 2º ESTÁGIO 5KG/H | E108: UN | F108: 1 | G108: 59.83333333 | H108: 59.83333333 | I108: 59.83 | J108: 59.83
B109: AGETOP_I | C109: H689 | D109: FITA VEDAROSCA 12 MM | E109: m | F109: 2.82 | G109: 0.28 | H109: 0.28 | I109: 0.79 | J109: 0.79
B110: MATERIAL (C) - TOTAL | I110: 60.62 | J110: 60.62
A112: 210 | B112: FONTE | C112: CÓDIGO | D112: DESCRIÇÃO | E112: UNIDADE | F112: COEFIC. | G112: CUSTO UNITÁRIO | I112: CUSTO TOTAL (A) + (B) + (C) + (D) + (E)
G113: DESONERADO | H113: NÃO DESONER. | I113: DESONERADO | J113: NÃO DESONER.
B114: COMPOSIÇÃO | C114: COMP 210_SEE | D114: REGULADOR DE 1º ESTÁGIO 60KG/H MODELO AP-40 COM MANÔMETRO | E114: UN | I114: 232.47 | J114: 236.61
B115: AGETOP_I | C115: 8 | D115: AJUDANTE | E115: h | F115: 1.15 | G115: 8.75 | H115: 10.14 | I115: 10.06 | J115: 11.66
B116: AGETOP_I | C116: 11 | D116: ENCANADOR | E116: h | F116: 1.15 | G116: 13.95 | H116: 16.16 | I116: 16.04 | J116: 18.58
B117: MÃO DE OBRA (B) - TOTAL | I117: 26.1 | J117: 30.24
B118: COTAÇÃO | C118: COT 101_SEE | D118: REGULADOR DE 1º ESTÁGIO 60KG/H MODELO AP-40 COM MANÔMETRO | E118: UN | F118: 1 | G118: 205.5766667 | H118: 205.5766667 | I118: 205.58 | J118: 205.58
B119: AGETOP_I | C119: H689 | D119: FITA VEDAROSCA 12 MM | E119: m | F119: 2.82 | G119: 0.28 | H119: 0.28 | I119: 0.79 | J119: 0.79
B120: MATERIAL (C) - TOTAL | I120: 206.37 | J120: 206.37
A122: 235 | B122: FONTE | C122: CÓDIGO | D122: DESCRIÇÃO | E122: UNIDADE | F122: COEFIC. | G122: CUSTO UNITÁRIO | I122: CUSTO TOTAL (A) + (B) + (C) + (D) + (E)
G123: DESONERADO | H123: NÃO DESONER. | I123: DESONERADO | J123: NÃO DESONER.
B124: COMPOSIÇÃO | C124: COMP 235_SEE | D124: PLACA DE SINALIZAÇÃO EM PVC COD 01 - (300X300) PROIBIDO FUMAR | E124: UN | I124: 25.32 | J124: 25.44
B125: AGETOP_I | C125: 5 | D125: SERVENTE | E125: h | F125: 0.09 | G125: 8.75 | H125: 10.14 | I125: 0.79 | J125: 0.91
B126: MÃO DE OBRA (B) - TOTAL | I126: 0.79 | J126: 0.91
B127: AGETOP_I | C127: 3070 | D127: BUCHA DE NYLON S-6 | E127: un | F127: 2 | G127: 0.04 | H127: 0.04 | I127: 0.08 | J127: 0.08
B128: AGETOP_I | C128: 3393 | D128: PARAFUSO P/BUCHA S-6 | E128: un | F128: 2 | G128: 0.08 | H128: 0.08 | I128: 0.16 | J128: 0.16
B129: SINAPI_I | C129: 37556 | D129: PLACA DE SINALIZACAO DE SEGURANCA CONTRA INCENDIO, FOTOLUMINESCENTE, QUADRADA, *20 X 20* CM, EM PVC *2* MM ANTI-CHAMAS (SIMBOLOS, CORES E PICTOGRAMAS CONFORME NBR 13434) | E129: UN | F129: 1 | G129: 24.29 | H129: 24.29 | I129: 24.29 | J129: 24.29
B130: MATERIAL (C) - TOTAL | I130: 24.53 | J130: 24.53
A132: 236 | B132: FONTE | C132: CÓDIGO | D132: DESCRIÇÃO | E132: UNIDADE | F132: COEFIC. | G132: CUSTO UNITÁRIO | I132: CUSTO TOTAL (A) + (B) + (C) + (D) + (E)
G133: DESONERADO | H133: NÃO DESONER. | I133: DESONERADO | J133: NÃO DESONER.
B134: COMPOSIÇÃO | C134: COMP 236_SEE | D134: PLACA DE SINALIZAÇÃO EM PVC COD 06 - (300X300) PERIGO INFLAMÁVEL | E134: UN | I134: 25.32 | J134: 25.44
B135: AGETOP_I | C135: 5 | D135: SERVENTE | E135: h | F135: 0.09 | G135: 8.75 | H135: 10.14 | I135: 0.79 | J135: 0.91
B136: MÃO DE OBRA (B) - TOTAL | I136: 0.79 | J136: 0.91
B137: AGETOP_I | C137: 3070 | D137: BUCHA DE NYLON S-6 | E137: un | F137: 2 | G137: 0.04 | H137: 0.04 | I137: 0.08 | J137: 0.08
B138: AGETOP_I | C138: 3393 | D138: PARAFUSO P/BUCHA S-6 | E138: un | F138: 2 | G138: 0.08 | H138: 0.08 | I138: 0.16 | J138: 0.16
B139: SINAPI_I | C139: 37556 | D139: PLACA DE SINALIZACAO DE SEGURANCA CONTRA INCENDIO, FOTOLUMINESCENTE, QUADRADA, *20 X 20* CM, EM PVC *2* MM ANTI-CHAMAS (SIMBOLOS, CORES E PICTOGRAMAS CONFORME NBR 13434) | E139: UN | F139: 1 | G139: 24.29 | H139: 24.29 | I139: 24.29 | J139: 24.29
B140: MATERIAL (C) - TOTAL | I140: 24.53 | J140: 24.53
A142: 45 | B142: FONTE | C142: CÓDIGO | D142: DESCRIÇÃO | E142: UNIDADE | F142: COEFIC. | G142: CUSTO UNITÁRIO | I142: CUSTO TOTAL (A) + (B) + (C) + (D) + (E)
G143: DESONERADO | H143: NÃO DESONER. | I143: DESONERADO | J143: NÃO DESONER.
B144: COMPOSIÇÃO | C144: COMP 045_SEE | D144: LAUDO DE ESTANQUEIDADE | E144: UN | I144: 936 | J144: 1085.12
B145: AGETOP | C145: 250101 | D145: ENGENHEIRO - (OBRAS CIVIS) | E145: H | F145: 16 | G145: 58.5 | H145: 67.82 | I145: 936 | J145: 1085.12
B146: MÃO DE OBRA (B) - TOTAL | I146: 936 | J146: 1085.12
B147: MATERIAL (C) - TOTAL | I147: 0 | J147: 0
